Workbook

Sheet Program
A2: SPOLEČNOST: JEVENMAX s. r. o.

Sheet VZZ
B2: VÝKAZ ZISKU A ZTRÁTY (v tisících Kč) | I2: Rok
I3: 2012 | J3: 2013 | K3: 2014 | L3: 2015 | M3: 2016 | N3: 2017
B4: Tržby z prodeje výrobků a služeb | I4: 10533 | J4: 5779 | K4: 7196 | L4: 12769 | M4: 14470 | N4: 17760
B5: Tržby za prodej zboží | M5: 14
B6: Výkonová spotřeba | I6: 8912 | J6: =SUM(J7:J8) -> 4295 | K6: 5358 | L6: 9590 | M6: 10779 | N6: =SUM(N7:N8) -> 14797 | O6: =SUM(O7:O8) -> 0 | P6: 0 | Q6: 0 | R6: 0 | S6: 0 | T6: 0 | U6: 0 | V6: 0
B7: Spotřeba materiálu a energie | J7: 485 | K7: 446 | L7: 1014 | M7: 2250 | N7: 3007
B8: Služby | J8: 3810 | K8: 4912 | L8: 8576 | M8: 8529 | N8: 11790
B9: Osobní náklady | I9: 1440 | J9: =SUM(J10:J11) -> 1432 | K9: 936 | L9: 2679 | M9: 2674 | N9: 1936 | O9: =SUM(O10:O11) -> 0 | P9: =SUM(P10:P11) -> 0 | Q9: =SUM(Q10:Q11) -> 0 | R9: =SUM(R10:R11) -> 0 | S9: =SUM(S10:S11) -> 0 | T9: =SUM(T10:T11) -> 0 | U9: =SUM(U10:U11) -> 0 | V9: =SUM(V10:V11) -> 0
B10: Mzdové náklady | J10: 1377 | K10: 881 | L10: 2578 | M10: 2567 | N10: 1727
B11: Náklady na sociální zabezpečení, zdravotní pojištění a ostatní náklady | J11: 55 | K11: =SUM(K12:K13) -> 55 | L11: 101 | M11: 107 | N11: 209 | O11: 0 | P11: 0 | Q11: 0 | R11: 0 | S11: 0 | T11: 0 | U11: 0 | V11: 0
B12: Náklady na sociální zabezpečení a zdravotní pojištění | K12: 55 | L12: 101 | M12: 98 | N12: 207
B13: Ostatní náklady | M13: 9 | N13: 2
B14: Úpravy hodnot v provozní oblasti | I14: =SUM(I15) -> 18 | J14: =SUM(J15) -> 133 | K14: =SUM(K15) -> 103 | L14: =SUM(L15) -> 228 | M14: =SUM(M15) -> 399 | N14: =SUM(N15) -> 552 | O14: 0 | P14: 0 | Q14: 0 | R14: 0 | S14: 0 | T14: 0 | U14: 0 | V14: 0
B15: Úpravy hodnot dlouhodobého nehmotného a hmotného majetku | I15: 18 | J15: 133 | K15: 103 | L15: 228 | M15: 399 | N15: 552 | O15: =O16 -> 0 | P15: =P16 -> 0 | Q15: 0 | R15: 0 | S15: 0 | T15: 0 | U15: 0 | V15: 0
B16: Úpravy hodnot dlouhodobého nehmotného a hmotného majetku - trvalé | I16: 18 | J16: 133 | K16: 103 | L16: 228 | M16: 399 | N16: 552
B17: Ostatní provozní výnosy | J17: =SUM(J18:J19) -> 580 | K17: =SUM(K18:K19) -> 0 | L17: =SUM(L18:L19) -> 151 | M17: =SUM(M18:M19) -> 313 | N17: 390 | O17: =SUM(O18:O19) -> 0 | P17: =SUM(P18:P19) -> 0 | Q17: 0 | R17: 0 | S17: 0 | T17: 0 | U17: 0 | V17: 0
B18: Tržby z prodaného dlouhodobého majetku | J18: 580 | M18: 289 | N18: 60
B19: Jiné provozní výnosy | L19: 151 | M19: 24 | N19: 49
B20: Ostatní provozní náklady | I20: =SUM(I21:I23) -> 19 | J20: =SUM(J21:J23) -> 1061 | K20: =SUM(K21:K23) -> 36 | L20: =SUM(L21:L23) -> 141 | M20: =SUM(M21:M23) -> 477 | N20: =SUM(N21:N23) -> 374 | O20: 0 | P20: 0 | Q20: 0 | R20: 0 | S20: 0 | T20: 0 | U20: 0 | V20: 0
B21: Zůstatková cena prodaného dlouhodobého majetku | J21: 672 | M21: 231 | N21: 101
B22: Daně a poplatky | I22: 6 | J22: 37 | K22: 16 | L22: 28 | M22: 58 | N22: 81
B23: Jiné provozní náklady | I23: 13 | J23: 352 | K23: 20 | L23: 113 | M23: 188 | N23: 192
B24: Provozní výsledek hospodaření | I24: 164 | J24: =J4+J5-J6-J9-J14+J17-J20 -> -562 | K24: =K4+K5-K6-K9-K14+K17-K20 -> 763 | L24: =L4+L5-L6-L9-L14+L17-L20 -> 282 | M24: =M4+M5-M6-M9-M14+M17-M20 -> 468 | N24: =N4+N5-N6-N9-N14+N17-N20 -> 491 | Q24: 0 | R24: 0 | S24: 0 | T24: 0 | U24: 0 | V24: 0
B25: Nákladové úroky a podobné náklady | J25: =J26 -> 0 | K25: =K26 -> 52 | L25: =L26 -> 86 | M25: =M26 -> 160 | N25: =N26 -> 168 | O25: 0 | P25: 0 | Q25: 0 | R25: 0 | S25: 0 | T25: 0 | U25: 0 | V25: 0
B26: Ostatní nákladové úroky a podobné náklady | K26: 52 | L26: 86 | M26: 160 | N26: 168
B27: Ostatní finanční výnosy | L27: 2
B28: Ostatní finanční náklady | I28: 7 | J28: 4 | K28: 15 | L28: 66 | M28: 36 | N28: 96
B29: Finanční výsledek hospodaření | I29: -7 | J29: =-J25+J27-J28 -> -4 | K29: =-K25+K27-K28 -> -67 | L29: =-L25+L27-L28 -> -150 | M29: =-M25+M27-M28 -> -196 | N29: =-N25+N27-N28 -> -264 | O29: 0 | P29: 0 | Q29: 0 | R29: 0 | S29: 0 | T29: 0 | U29: 0 | V29: 0
B30: Výsledek hospodaření před zdaněním | I30: =I24+I29 -> 157 | J30: -566 | K30: 696 | L30: 132 | M30: 272 | N30: 227 | O30: 0 | P30: 0 | Q30: 0 | R30: 0 | S30: 0 | T30: 0 | U30: 0 | V30: 0
B31: Daň z přijmů | I31: 10 | J31: =J32 -> 0 | K31: =K32 -> 12 | L31: =L32 -> 14 | M31: =M32 -> 53 | N31: 67
B32: Daň z přijmů splatná | I32: 10 | K32: 12 | L32: 14 | M32: 53 | N32: 67
B33: Výsledek hospodaření po zdanění | I33: 147 | J33: =J30-J31 -> -566 | K33: =K30-K31 -> 684 | L33: =L30-L31 -> 118 | M33: 219 | N33: 160 | O33: 0 | P33: 0 | Q33: 0 | R33: 0 | S33: 0 | T33: 0 | U33: 0 | V33: 0
B34: Výsledek hospodaření za účetní období | I34: 147 | J34: -566 | K34: 684 | L34: 118 | M34: 219 | N34: 160
B35: Čistý obrat za účetní období | I35: =SUM(I4,I5,I17,I27,) -> 10533 | J35: =SUM(J4,J5,J17,J27,) -> 6359 | K35: =SUM(K4,K5,K17,K27,) -> 7196 | L35: =SUM(L4,L5,L17,L27,) -> 12922 | M35: =SUM(M4,M5,M17,M27,) -> 14797 | N35: =SUM(N4,N5,N17,N27,) -> 18150 | O35: 0 | P35: 0 | Q35: 0 | R35: 0 | S35: 0 | T35: 0 | U35: 0 | V35: 0

Sheet Aktiva
B4: AKITVA (v tisících Kč) | H4: Rok
H5: 2011 | I5: 2012 | J5: 2013 | K5: 2014 | L5: 2015 | M5: 2016 | N5: 2017
B6: AKTIVA CELKEM | H6: =H7+H10+H24 -> 3400 | I6: =I7+I10+I24 -> 3101 | J6: 2317 | K6: 3234 | L6: 2744 | M6: 3195 | N6: 4655 | O6: 0 | P6: =P7+P10+P24 -> 0 | Q6: =Q7+Q10+Q24 -> 0 | R6: 0 | S6: 0 | T6: 0 | U6: 0 | V6: 0
B7: Dlouhodobý majetek | H7: =H8 -> 309 | I7: =I8 -> 759 | J7: 374 | K7: 384 | L7: 881 | M7: 1261 | N7: 2154 | O7: 0 | P7: 0 | Q7: 0 | R7: 0 | S7: 0 | T7: 0 | U7: 0 | V7: 0
B8: Dlouhodobý hmotný majetek | H8: =H9 -> 309 | I8: =I9 -> 759 | J8: 374 | K8: 384 | L8: 881 | M8: 1261 | N8: 2154 | O8: 0 | P8: 0 | Q8: 0 | R8: 0 | S8: 0 | T8: 0 | U8: 0 | V8: 0
B9: Hmotné movité věci a jejich soubory | H9: 309 | I9: 759 | J9: 374 | K9: 384 | L9: 881 | M9: 1261 | N9: 2154
B10: Obežná aktiva | H10: =H11+H21 -> 3088 | I10: =I11+I21 -> 2319 | J10: 1934 | K10: 2844 | L10: 1845 | M10: 1898 | N10: 2477 | O10: 0 | P10: =P11+P21 -> 0 | Q10: =Q11+Q21 -> 0 | R10: 0 | S10: 0 | T10: 0 | U10: 0 | V10: 0
B11: Pohledávky | H11: =H12+H16 -> 2198 | I11: =I12+I16 -> 2255 | J11: 1910 | K11: 1098 | L11: 1483 | M11: 1795 | N11: 2205 | O11: 0 | P11: =P12+P16 -> 0 | Q11: =Q12+Q16 -> 0 | R11: 0 | S11: 0 | T11: 0 | U11: 0 | V11: 0
B12: Dlouhodobé pohledávky | H12: 4 | I12: 27 | J12: 41 | K12: =K13+K14 -> 25 | L12: =L13+L14 -> 25 | M12: 52 | N12: 0 | O12: 0 | P12: =P13+P14 -> 0 | Q12: =Q13+Q14 -> 0 | R12: 0 | S12: 0 | T12: 0 | U12: 0 | V12: 0
B13: Pohledávky z obchodních vztahů | K13: 25 | L13: 25 | M13: 25
B14: Pohledávky - ostatní | M14: =M15 -> 27 | N14: =N15 -> 0 | O14: =O15 -> 0 | P14: 0 | Q14: =Q15 -> 0 | R14: =R15 -> 0 | S14: =S15 -> 0 | T14: =T15 -> 0 | U14: =U15 -> 0 | V14: =V15 -> 0
B15: Dlouhodobé poskytnuté zálohy | M15: 27
B16: Krátkodobé pohledávky | H16: 2194 | I16: 2228 | J16: 1869 | K16: =K17+K18 -> 1073 | L16: =L17+L18 -> 1458 | M16: 1743 | N16: 2205 | O16: =O17+O18 -> 0 | P16: =P17+P18 -> 0 | Q16: =Q17+Q18 -> 0 | R16: 0 | S16: 0 | T16: 0 | U16: 0 | V16: 0
B17: Pohledávky z obchodních vztahů | K17: 1046 | L17: 1396 | M17: 1736 | N17: 2175
B18: Pohledávky - ostatní | K18: =K19+K20 -> 27 | L18: =L19+L20 -> 62 | M18: 7 | N18: 30 | O18: 0 | P18: =P19+P20 -> 0 | Q18: =Q19+Q20 -> 0 | R18: 0 | S18: 0 | T18: 0 | U18: 0 | V18: 0
B19: Stát - daňové pohledávky | K19: 17 | L19: 57 | M19: 7 | N19: 3
B20: Krátkodobě poskytnuté zálohy | K20: 10 | L20: 5 | N20: 27
B21: Peněžní prostředky | H21: 890 | I21: 64 | J21: 24 | K21: =K22+K23 -> 1746 | L21: =L22+L23 -> 362 | M21: 103 | N21: 272 | O21: 0 | P21: =P22+P23 -> 0 | Q21: =Q22+Q23 -> 0 | R21: 0 | S21: 0 | T21: 0 | U21: 0 | V21: 0
B22: Peněžní prostředky v pokladně | K22: 1556 | L22: 361 | M22: 103 | N22: 120
B23: Peněžní prostředky na účtech | K23: 190 | L23: 1 | N23: 152
B24: Časové rozlišení | H24: 3 | I24: 23 | J24: 9 | K24: =K25 -> 6 | L24: =L25 -> 18 | M24: 36 | N24: 24 | O24: 0 | P24: 0 | Q24: 0 | R24: 0 | S24: 0 | T24: 0 | U24: 0 | V24: 0
B25: Náklady příštích období | K25: 6 | L25: 18 | M25: 36 | N25: 24

Sheet Pasiva
B3: Pasiva (v tisících Kč) | H3: Rok
H4: 2011 | I4: 2012 | J4: 2013 | K4: 2014 | L4: 2015 | M4: 2016 | N4: 2017
B5: PASIVA | H5: =H6+H12+H26 -> 3400 | I5: =I6+I12+I26 -> 3105 | J5: 2317 | K5: 3234 | L5: 2744 | M5: 3195 | N5: 4705 | O5: 0 | P5: 0 | Q5: 0 | R5: 0 | S5: 0 | T5: 0 | U5: 0 | V5: 0
B6: Vlastní kapitál | H6: -60 | I6: 87 | J6: -480 | K6: 205 | L6: 323 | M6: 542 | N6: 702
B7: Základní kapitál | H7: =H8 -> 200 | I7: =I8 -> 200 | J7: 200 | K7: =K8 -> 200 | L7: =L8 -> 200 | M7: 200 | N7: 200 | O7: 0 | P7: 0 | Q7: 0 | R7: 0 | S7: 0 | T7: 0 | U7: 0 | V7: 0
B8: Základní kapitál | H8: 200 | I8: 200 | J8: 200 | K8: 200 | L8: 200 | M8: 200 | N8: 200
B9: Výsledek hospodaření min. let | H9: 0 | I9: -260 | J9: -114 | K9: -679 | L9: =L10 -> 5 | M9: =M10 -> 123 | N9: 343 | O9: 0 | P9: 0 | Q9: 0 | R9: 0 | S9: 0 | T9: 0 | U9: 0 | V9: 0
B10: Nerozdělený zisk minulých let | L10: 5 | M10: 123 | N10: 343
B11: Výsledek hospodaření běžného účetního období | H11: -260 | I11: 147 | J11: -566 | K11: 684 | L11: 118 | M11: 219 | N11: 160
B12: Cizí zdroje | H12: =H14+H16 -> 3459 | I12: =I14+I16 -> 3017 | J12: 2784 | K12: 3027 | L12: 2419 | M12: 2651 | N12: 4001 | O12: 0 | P12: 0 | Q12: 0 | R12: 0 | S12: 0 | T12: 0 | U12: 0 | V12: 0
B13: Závazky | K13: =SUM(K14,K16) -> 3027 | L13: =SUM(L14,L16) -> 2419 | M13: 2651 | N13: 4001 | O13: 0 | P13: 0 | Q13: 0 | R13: 0 | S13: 0 | T13: 0 | U13: 0 | V13: 0
B14: Dlouhodobé závazky | H14: =H15 -> 1039 | I14: 738 | J14: 2129 | K14: =K15 -> 250 | L14: =L15 -> 130 | M14: 418 | N14: 2124 | O14: 0 | P14: 0 | Q14: 0 | R14: 0 | S14: 0 | T14: 0 | U14: 0 | V14: 0
B15: Závazky k úvěrovým institucím | H15: 1039 | I15: 738 | J15: 2129 | K15: 250 | L15: 130 | M15: 418 | N15: 2124
B16: Krátkodobé závazky | H16: 2420 | I16: 2279 | J16: 655 | K16: =SUM(K17:K19) -> 2777 | L16: =SUM(L17:L19) -> 2289 | M16: =SUM(M17:M19) -> 2233 | N16: =SUM(N17:N19) -> 1877 | O16: 0 | P16: 0 | Q16: 0 | R16: 0 | S16: 0 | T16: 0 | U16: 0 | V16: 0
B17: Závazky k úvěrovým institucím | K17: 122 | L17: 1368 | M17: 1392
B18: Závazky z obchodních vztahů | K18: 744 | L18: 638 | M18: 572 | N18: 770
B19: Závazky ostátní | K19: =SUM(K20:K25) -> 1911 | L19: =SUM(L20:L25) -> 283 | M19: =SUM(M20:M25) -> 269 | N19: =SUM(N20:N25) -> 1107 | O19: =SUM(O20:O25) -> 0 | P19: =SUM(P20:P25) -> 0 | Q19: 0 | R19: 0 | S19: 0 | T19: 0 | U19: 0 | V19: 0
B20: Závazky ke společníkům | K20: 1803 | L20: 5 | N20: 859
B21: Závazky k zaměstnancům | K21: 64 | L21: 244 | M21: 42 | N21: 100
B22: Závazky ze sociálního zabezpečení a zdravotního pojištění | K22: 13 | L22: 9 | M22: 11 | N22: 22
B23: Stát - daňové závazky a dotace | K23: 16 | L23: 16 | M23: 215 | N23: 133
B24: Dohadné účty pasivní | K24: 10 | L24: 5 | N24: -7
B25: Jiné závazky | K25: 5 | L25: 4 | M25: 1
B26: Časové rozlišení pasiv | H26: 1 | I26: 1 | J26: 13 | K26: =K27 -> 2 | L26: =L27 -> 2 | M26: 2 | N26: 2 | O26: 0 | P26: 0 | Q26: 0 | R26: 0 | S26: 0 | T26: 0 | U26: 0 | V26: 0
B27: Výdaje příštích období | K27: 2 | L27: 2 | M27: 2 | N27: 2

Sheet Horizontalní
F4: Položky | I4: 2012 | J4: 2013 | K4: 2014 | L4: 2015 | M4: 2016 | N4: 2017 | O4: 2018 | P4: 2019 | Q4: 2020 | R4: 2021 | S4: 2022 | T4: 2023 | U4: 2024 | V4: 2025
I5: abs. změna
F6: Aktiva celkem | I6: =Aktiva!I6-Aktiva!H6 -> -299 | J6: =Aktiva!J6-Aktiva!I6 -> -784 | K6: =Aktiva!K6-Aktiva!J6 -> 917 | L6: =Aktiva!L6-Aktiva!K6 -> -490 | M6: =Aktiva!M6-Aktiva!L6 -> 451 | N6: =Aktiva!N6-Aktiva!M6 -> 1460 | O6: =Aktiva!O6-Aktiva!N6 -> -4655 | P6: =Aktiva!P6-Aktiva!O6 -> 0 | Q6: =Aktiva!Q6-Aktiva!P6 -> 0 | R6: =Aktiva!R6-Aktiva!Q6 -> 0 | S6: =Aktiva!S6-Aktiva!R6 -> 0 | T6: =Aktiva!T6-Aktiva!S6 -> 0 | U6: =Aktiva!U6-Aktiva!T6 -> 0 | V6: =Aktiva!V6-Aktiva!U6 -> 0
F7: Dlouhodobý majetek | I7: =Aktiva!I7-Aktiva!H7 -> 450 | J7: =Aktiva!J7-Aktiva!I7 -> -385 | K7: =Aktiva!K7-Aktiva!J7 -> 10 | L7: =Aktiva!L7-Aktiva!K7 -> 497 | M7: =Aktiva!M7-Aktiva!L7 -> 380 | N7: =Aktiva!N7-Aktiva!M7 -> 893 | O7: =Aktiva!O7-Aktiva!N7 -> -2154 | P7: =Aktiva!P7-Aktiva!O7 -> 0 | Q7: =Aktiva!Q7-Aktiva!P7 -> 0 | R7: =Aktiva!R7-Aktiva!Q7 -> 0 | S7: =Aktiva!S7-Aktiva!R7 -> 0 | T7: =Aktiva!T7-Aktiva!S7 -> 0 | U7: =Aktiva!U7-Aktiva!T7 -> 0 | V7: =Aktiva!V7-Aktiva!U7 -> 0
F8: Dlouhodobý nehmotný majetek
F9: Dlouhodobý hmotný majetek | I9: =Aktiva!I8-Aktiva!H8 -> 450 | J9: =Aktiva!J8-Aktiva!I8 -> -385 | K9: =Aktiva!K8-Aktiva!J8 -> 10 | L9: =Aktiva!L8-Aktiva!K8 -> 497 | M9: =Aktiva!M8-Aktiva!L8 -> 380 | N9: =Aktiva!N8-Aktiva!M8 -> 893 | O9: =Aktiva!O8-Aktiva!N8 -> -2154 | P9: =Aktiva!P8-Aktiva!O8 -> 0 | Q9: =Aktiva!Q8-Aktiva!P8 -> 0 | R9: =Aktiva!R8-Aktiva!Q8 -> 0 | S9: =Aktiva!S8-Aktiva!R8 -> 0 | T9: =Aktiva!T8-Aktiva!S8 -> 0 | U9: =Aktiva!U8-Aktiva!T8 -> 0 | V9: =Aktiva!V8-Aktiva!U8 -> 0
F10: Oběžná aktiva | I10: =Aktiva!I10-Aktiva!H10 -> -769 | J10: =Aktiva!J10-Aktiva!I10 -> -385 | K10: =Aktiva!K10-Aktiva!J10 -> 910 | L10: =Aktiva!L10-Aktiva!K10 -> -999 | M10: =Aktiva!M10-Aktiva!L10 -> 53 | N10: =Aktiva!N10-Aktiva!M10 -> 579 | O10: =Aktiva!O10-Aktiva!N10 -> -2477 | P10: =Aktiva!P10-Aktiva!O10 -> 0 | Q10: =Aktiva!Q10-Aktiva!P10 -> 0 | R10: =Aktiva!R10-Aktiva!Q10 -> 0 | S10: =Aktiva!S10-Aktiva!R10 -> 0 | T10: =Aktiva!T10-Aktiva!S10 -> 0 | U10: =Aktiva!U10-Aktiva!T10 -> 0 | V10: =Aktiva!V10-Aktiva!U10 -> 0
F11: Zásoby
F12: Krátkodobé pohledávky | I12: =Aktiva!I16-Aktiva!H16 -> 34 | J12: =Aktiva!J16-Aktiva!I16 -> -359 | K12: =Aktiva!K16-Aktiva!J16 -> -796 | L12: =Aktiva!L16-Aktiva!K16 -> 385 | M12: =Aktiva!M16-Aktiva!L16 -> 285 | N12: =Aktiva!N16-Aktiva!M16 -> 462 | O12: =Aktiva!O16-Aktiva!N16 -> -2205 | P12: =Aktiva!P16-Aktiva!O16 -> 0 | Q12: =Aktiva!Q16-Aktiva!P16 -> 0 | R12: =Aktiva!R16-Aktiva!Q16 -> 0 | S12: =Aktiva!S16-Aktiva!R16 -> 0 | T12: =Aktiva!T16-Aktiva!S16 -> 0 | U12: =Aktiva!U16-Aktiva!T16 -> 0 | V12: =Aktiva!V16-Aktiva!U16 -> 0
F13: Krátkodobý finanční majetek | I13: =Aktiva!I21-Aktiva!H21 -> -826 | J13: =Aktiva!J21-Aktiva!I21 -> -40 | K13: =Aktiva!K21-Aktiva!J21 -> 1722 | L13: =Aktiva!L21-Aktiva!K21 -> -1384 | M13: =Aktiva!M21-Aktiva!L21 -> -259 | N13: =Aktiva!N21-Aktiva!M21 -> 169 | O13: =Aktiva!O21-Aktiva!N21 -> -272 | P13: =Aktiva!P21-Aktiva!O21 -> 0 | Q13: =Aktiva!Q21-Aktiva!P21 -> 0 | R13: =Aktiva!R21-Aktiva!Q21 -> 0 | S13: =Aktiva!S21-Aktiva!R21 -> 0 | T13: =Aktiva!T21-Aktiva!S21 -> 0 | U13: =Aktiva!U21-Aktiva!T21 -> 0 | V13: =Aktiva!V21-Aktiva!U21 -> 0
F14: Časové rozlišení | I14: =Aktiva!I24-Aktiva!H24 -> 20 | J14: =Aktiva!J24-Aktiva!I24 -> -14 | K14: =Aktiva!K24-Aktiva!J24 -> -3 | L14: =Aktiva!L24-Aktiva!K24 -> 12 | M14: =Aktiva!M24-Aktiva!L24 -> 18 | N14: =Aktiva!N24-Aktiva!M24 -> -12 | O14: =Aktiva!O24-Aktiva!N24 -> -24 | P14: =Aktiva!P24-Aktiva!O24 -> 0 | Q14: =Aktiva!Q24-Aktiva!P24 -> 0 | R14: =Aktiva!R24-Aktiva!Q24 -> 0 | S14: =Aktiva!S24-Aktiva!R24 -> 0 | T14: =Aktiva!T24-Aktiva!S24 -> 0 | U14: =Aktiva!U24-Aktiva!T24 -> 0 | V14: =Aktiva!V24-Aktiva!U24 -> 0
F16: Položky | I16: 2012 | J16: 2013 | K16: 2014 | L16: 2015 | M16: 2016 | N16: 2017 | O16: 2018 | P16: 2019 | Q16: 2020 | R16: 2021 | S16: 2022 | T16: 2023 | U16: 2024 | V16: 2025
I17: abs. změna
F18: Pasiva celkem | I18: =Pasiva!I5-Pasiva!H5 -> -295 | J18: =Pasiva!J5-Pasiva!I5 -> -788 | K18: =Pasiva!K5-Pasiva!J5 -> 917 | L18: =Pasiva!L5-Pasiva!K5 -> -490 | M18: =Pasiva!M5-Pasiva!L5 -> 451 | N18: =Pasiva!N5-Pasiva!M5 -> 1510 | O18: =Pasiva!O5-Pasiva!N5 -> -4705 | P18: =Pasiva!P5-Pasiva!O5 -> 0 | Q18: =Pasiva!Q5-Pasiva!P5 -> 0 | R18: =Pasiva!R5-Pasiva!Q5 -> 0 | S18: =Pasiva!S5-Pasiva!R5 -> 0 | T18: =Pasiva!T5-Pasiva!S5 -> 0 | U18: =Pasiva!U5-Pasiva!T5 -> 0 | V18: =Pasiva!V5-Pasiva!U5 -> 0
F19: Vlastní kapitál | I19: =Pasiva!I6-Pasiva!H6 -> 147 | J19: =Pasiva!J6-Pasiva!I6 -> -567 | K19: =Pasiva!K6-Pasiva!J6 -> 685 | L19: =Pasiva!L6-Pasiva!K6 -> 118 | M19: =Pasiva!M6-Pasiva!L6 -> 219 | N19: =Pasiva!N6-Pasiva!M6 -> 160 | O19: =Pasiva!O6-Pasiva!N6 -> -702 | P19: =Pasiva!P6-Pasiva!O6 -> 0 | Q19: =Pasiva!Q6-Pasiva!P6 -> 0 | R19: =Pasiva!R6-Pasiva!Q6 -> 0 | S19: =Pasiva!S6-Pasiva!R6 -> 0 | T19: =Pasiva!T6-Pasiva!S6 -> 0 | U19: =Pasiva!U6-Pasiva!T6 -> 0 | V19: =Pasiva!V6-Pasiva!U6 -> 0
F20: VH minulých let | I20: =Pasiva!I9-Pasiva!H9 -> -260 | J20: =Pasiva!J9-Pasiva!I9 -> 146 | K20: =Pasiva!K9-Pasiva!J9 -> -565 | L20: =Pasiva!L9-Pasiva!K9 -> 684 | M20: =Pasiva!M9-Pasiva!L9 -> 118 | N20: =Pasiva!N9-Pasiva!M9 -> 220 | O20: =Pasiva!O9-Pasiva!N9 -> -343 | P20: =Pasiva!P9-Pasiva!O9 -> 0 | Q20: =Pasiva!Q9-Pasiva!P9 -> 0 | R20: =Pasiva!R9-Pasiva!Q9 -> 0 | S20: =Pasiva!S9-Pasiva!R9 -> 0 | T20: =Pasiva!T9-Pasiva!S9 -> 0 | U20: =Pasiva!U9-Pasiva!T9 -> 0 | V20: =Pasiva!V9-Pasiva!U9 -> 0
F21: VH běžného účetního období | I21: =Pasiva!I11-Pasiva!H11 -> 407 | J21: =Pasiva!J11-Pasiva!I11 -> -713 | K21: =Pasiva!K11-Pasiva!J11 -> 1250 | L21: =Pasiva!L11-Pasiva!K11 -> -566 | M21: =Pasiva!M11-Pasiva!L11 -> 101 | N21: =Pasiva!N11-Pasiva!M11 -> -59 | O21: =Pasiva!O11-Pasiva!N11 -> -160 | P21: =Pasiva!P11-Pasiva!O11 -> 0 | Q21: =Pasiva!Q11-Pasiva!P11 -> 0 | R21: =Pasiva!R11-Pasiva!Q11 -> 0 | S21: =Pasiva!S11-Pasiva!R11 -> 0 | T21: =Pasiva!T11-Pasiva!S11 -> 0 | U21: =Pasiva!U11-Pasiva!T11 -> 0 | V21: =Pasiva!V11-Pasiva!U11 -> 0
F22: Cizí zdroje | I22: =Pasiva!I12-Pasiva!H12 -> -442 | J22: =Pasiva!J12-Pasiva!I12 -> -233 | K22: =Pasiva!K12-Pasiva!J12 -> 243 | L22: =Pasiva!L12-Pasiva!K12 -> -608 | M22: =Pasiva!M12-Pasiva!L12 -> 232 | N22: =Pasiva!N12-Pasiva!M12 -> 1350 | O22: =Pasiva!O12-Pasiva!N12 -> -4001 | P22: =Pasiva!P12-Pasiva!O12 -> 0 | Q22: =Pasiva!Q12-Pasiva!P12 -> 0 | R22: =Pasiva!R12-Pasiva!Q12 -> 0 | S22: =Pasiva!S12-Pasiva!R12 -> 0 | T22: =Pasiva!T12-Pasiva!S12 -> 0 | U22: =Pasiva!U12-Pasiva!T12 -> 0 | V22: =Pasiva!V12-Pasiva!U12 -> 0
F23: Krátkodobé závazky | I23: =Pasiva!I16-Pasiva!H16 -> -141 | J23: =Pasiva!J16-Pasiva!I16 -> -1624 | K23: =Pasiva!K16-Pasiva!J16 -> 2122 | L23: =Pasiva!L16-Pasiva!K16 -> -488 | M23: =Pasiva!M16-Pasiva!L16 -> -56 | N23: =Pasiva!N16-Pasiva!M16 -> -356 | O23: =Pasiva!O16-Pasiva!N16 -> -1877 | P23: =Pasiva!P16-Pasiva!O16 -> 0 | Q23: =Pasiva!Q16-Pasiva!P16 -> 0 | R23: =Pasiva!R16-Pasiva!Q16 -> 0 | S23: =Pasiva!S16-Pasiva!R16 -> 0 | T23: =Pasiva!T16-Pasiva!S16 -> 0 | U23: =Pasiva!U16-Pasiva!T16 -> 0 | V23: =Pasiva!V16-Pasiva!U16 -> 0
F26: Položky | I26: 2012 | J26: 2013 | K26: 2014 | L26: 2015 | M26: 2016 | N26: 2017 | O26: 2018 | P26: 2019 | Q26: 2020 | R26: 2021 | S26: 2022 | T26: 2023 | U26: 2024 | V26: 2025
I27: % změna
F28: Aktiva celkem | I28: =I6/Aktiva!H6 -> -0.08794117647 | J28: =J6/Aktiva!I6 -> -0.2528216704 | K28: =K6/Aktiva!J6 -> 0.3957703927 | L28: =L6/Aktiva!K6 -> -0.1515151515 | M28: =M6/Aktiva!L6 -> 0.1643586006 | N28: =N6/Aktiva!M6 -> 0.4569640063 | O28: =O6/Aktiva!N6 -> -1 | P28: =P6/Aktiva!O6 ->  | Q28: =Q6/Aktiva!P6 ->  | R28: =R6/Aktiva!Q6 ->  | S28: =S6/Aktiva!R6 ->  | T28: =T6/Aktiva!S6 ->  | U28: =U6/Aktiva!T6 ->  | V28: =V6/Aktiva!U6 -> 
F29: Dlouhodobý majetek | I29: =I7/Aktiva!H7 -> 1.45631068 | J29: =J7/Aktiva!I7 -> -0.5072463768 | K29: =K7/Aktiva!J7 -> 0.02673796791 | L29: =L7/Aktiva!K7 -> 1.294270833 | M29: =M7/Aktiva!L7 -> 0.4313280363 | N29: =N7/Aktiva!M7 -> 0.7081681205 | O29: =O7/Aktiva!N7 -> -1 | P29: =P7/Aktiva!O7 ->  | Q29: =Q7/Aktiva!P7 ->  | R29: =R7/Aktiva!Q7 ->  | S29: =S7/Aktiva!R7 ->  | T29: =T7/Aktiva!S7 ->  | U29: =U7/Aktiva!T7 ->  | V29: =V7/Aktiva!U7 -> 
F30: Dlouhodobý nehmotný majetek
F31: Dlouhodobý hmotný majetek | I31: =I9/Aktiva!H8 -> 1.45631068 | J31: =J9/Aktiva!I8 -> -0.5072463768 | K31: =K9/Aktiva!J8 -> 0.02673796791 | L31: =L9/Aktiva!K8 -> 1.294270833 | M31: =M9/Aktiva!L8 -> 0.4313280363 | N31: =N9/Aktiva!M8 -> 0.7081681205 | O31: =O9/Aktiva!N8 -> -1 | P31: =P9/Aktiva!O8 ->  | Q31: =Q9/Aktiva!P8 ->  | R31: =R9/Aktiva!Q8 ->  | S31: =S9/Aktiva!R8 ->  | T31: =T9/Aktiva!S8 ->  | U31: =U9/Aktiva!T8 ->  | V31: =V9/Aktiva!U8 -> 
F32: Oběžná aktiva | I32: =I10/Aktiva!H10 -> -0.2490284974 | J32: =J10/Aktiva!I10 -> -0.1660198361 | K32: =K10/Aktiva!J10 -> 0.4705274043 | L32: =L10/Aktiva!K10 -> -0.3512658228 | M32: =M10/Aktiva!L10 -> 0.02872628726 | N32: =N10/Aktiva!M10 -> 0.3050579557 | O32: =O10/Aktiva!N10 -> -1 | P32: =P10/Aktiva!O10 ->  | Q32: =Q10/Aktiva!P10 ->  | R32: =R10/Aktiva!Q10 ->  | S32: =S10/Aktiva!R10 ->  | T32: =T10/Aktiva!S10 ->  | U32: =U10/Aktiva!T10 ->  | V32: =V10/Aktiva!U10 -> 
F33: Zásoby
F34: Krátkodobé pohledávky | I34: =I12/Aktiva!H16 -> 0.01549680948 | J34: =J12/Aktiva!I16 -> -0.1611310592 | K34: =K12/Aktiva!J16 -> -0.4258962012 | L34: =L12/Aktiva!K16 -> 0.3588070829 | M34: =M12/Aktiva!L16 -> 0.195473251 | N34: =N12/Aktiva!M16 -> 0.265060241 | O34: =O12/Aktiva!N16 -> -1 | P34: =P12/Aktiva!O16 ->  | Q34: =Q12/Aktiva!P16 ->  | R34: =R12/Aktiva!Q16 ->  | S34: =S12/Aktiva!R16 ->  | T34: =T12/Aktiva!S16 ->  | U34: =U12/Aktiva!T16 ->  | V34: =V12/Aktiva!U16 -> 
F35: Krátkodobý finanční majetek | I35: =I13/Aktiva!H21 -> -0.9280898876 | J35: =J13/Aktiva!I21 -> -0.625 | K35: =K13/Aktiva!J21 -> 71.75 | L35: =L13/Aktiva!K21 -> -0.7926689576 | M35: =M13/Aktiva!L21 -> -0.7154696133 | N35: =N13/Aktiva!M21 -> 1.640776699 | O35: =O13/Aktiva!N21 -> -1 | P35: =P13/Aktiva!O21 ->  | Q35: =Q13/Aktiva!P21 ->  | R35: =R13/Aktiva!Q21 ->  | S35: =S13/Aktiva!R21 ->  | T35: =T13/Aktiva!S21 ->  | U35: =U13/Aktiva!T21 ->  | V35: =V13/Aktiva!U21 -> 
F36: Časové rozlišení | I36: =I14/Aktiva!H24 -> 6.666666667 | J36: =J14/Aktiva!I24 -> -0.6086956522 | K36: =K14/Aktiva!J24 -> -0.3333333333 | L36: =L14/Aktiva!K24 -> 2 | M36: =M14/Aktiva!L24 -> 1 | N36: =N14/Aktiva!M24 -> -0.3333333333 | O36: =O14/Aktiva!N24 -> -1 | P36: =P14/Aktiva!O24 ->  | Q36: =Q14/Aktiva!P24 ->  | R36: =R14/Aktiva!Q24 ->  | S36: =S14/Aktiva!R24 ->  | T36: =T14/Aktiva!S24 ->  | U36: =U14/Aktiva!T24 ->  | V36: =V14/Aktiva!U24 -> 
F38: Položky | I38: 2012 | J38: 2013 | K38: 2014 | L38: 2015 | M38: 2016 | N38: 2017 | O38: 2018 | P38: 2019 | Q38: 2020 | R38: 2021 | S38: 2022 | T38: 2023 | U38: 2024 | V38: 2025
I39: % změna
F40: Pasiva celkem | I40: =I18/Pasiva!H5 -> -0.08676470588 | J40: =J18/Pasiva!I5 -> -0.253784219 | K40: =K18/Pasiva!J5 -> 0.3957703927 | L40: =L18/Pasiva!K5 -> -0.1515151515 | M40: =M18/Pasiva!L5 -> 0.1643586006 | N40: =N18/Pasiva!M5 -> 0.4726134585 | O40: =O18/Pasiva!N5 -> -1 | P40: =P18/Pasiva!O5 ->  | Q40: =Q18/Pasiva!P5 ->  | R40: =R18/Pasiva!Q5 ->  | S40: =S18/Pasiva!R5 ->  | T40: =T18/Pasiva!S5 ->  | U40: =U18/Pasiva!T5 ->  | V40: =V18/Pasiva!U5 -> 
F41: Vlastní kapitál | I41: =I19/Pasiva!H6 -> -2.45 | J41: =J19/Pasiva!I6 -> -6.517241379 | K41: =K19/Pasiva!J6 -> -1.427083333 | L41: =L19/Pasiva!K6 -> 0.5756097561 | M41: =M19/Pasiva!L6 -> 0.6780185759 | N41: =N19/Pasiva!M6 -> 0.295202952 | O41: =O19/Pasiva!N6 -> -1 | P41: =P19/Pasiva!O6 ->  | Q41: =Q19/Pasiva!P6 ->  | R41: =R19/Pasiva!Q6 ->  | S41: =S19/Pasiva!R6 ->  | T41: =T19/Pasiva!S6 ->  | U41: =U19/Pasiva!T6 ->  | V41: =V19/Pasiva!U6 -> 
F42: VH minulých let | I42: =IF(Pasiva!H9=0,I20/1,I20/Pasiva!H9) -> -260 | J42: =J20/Pasiva!I9 -> -0.5615384615 | K42: =K20/Pasiva!J9 -> 4.956140351 | L42: =L20/Pasiva!K9 -> -1.00736377 | M42: =M20/Pasiva!L9 -> 23.6 | N42: =N20/Pasiva!M9 -> 1.788617886 | O42: =IF(Pasiva!N9=0,O20/1,O20/Pasiva!N9) -> -1 | P42: =P20/Pasiva!O9 ->  | Q42: =Q20/Pasiva!P9 ->  | R42: =R20/Pasiva!Q9 ->  | S42: =S20/Pasiva!R9 ->  | T42: =T20/Pasiva!S9 ->  | U42: =U20/Pasiva!T9 ->  | V42: =V20/Pasiva!U9 -> 
F43: VH běžného účetního období | I43: =I21/Pasiva!H11 -> -1.565384615 | J43: =J21/Pasiva!I11 -> -4.850340136 | K43: =K21/Pasiva!J11 -> -2.208480565 | L43: =L21/Pasiva!K11 -> -0.8274853801 | M43: =M21/Pasiva!L11 -> 0.8559322034 | N43: =N21/Pasiva!M11 -> -0.2694063927 | O43: =O21/Pasiva!N11 -> -1 | P43: =P21/Pasiva!O11 ->  | Q43: =Q21/Pasiva!P11 ->  | R43: =R21/Pasiva!Q11 ->  | S43: =S21/Pasiva!R11 ->  | T43: =T21/Pasiva!S11 ->  | U43: =U21/Pasiva!T11 ->  | V43: =V21/Pasiva!U11 -> 
F44: Cizí zdroje | I44: =I22/Pasiva!H12 -> -0.1277825961 | J44: =J22/Pasiva!I12 -> -0.07722903547 | K44: =K22/Pasiva!J12 -> 0.08728448276 | L44: =L22/Pasiva!K12 -> -0.2008589362 | M44: =M22/Pasiva!L12 -> 0.09590739975 | N44: =N22/Pasiva!M12 -> 0.5092417955 | O44: =O22/Pasiva!N12 -> -1 | P44: =P22/Pasiva!O12 ->  | Q44: =Q22/Pasiva!P12 ->  | R44: =R22/Pasiva!Q12 ->  | S44: =S22/Pasiva!R12 ->  | T44: =T22/Pasiva!S12 ->  | U44: =U22/Pasiva!T12 ->  | V44: =V22/Pasiva!U12 -> 
F45: Krátkodobé závazky | I45: =I23/Pasiva!H16 -> -0.05826446281 | J45: =J23/Pasiva!I16 -> -0.7125932427 | K45: =K23/Pasiva!J16 -> 3.239694656 | L45: =L23/Pasiva!K16 -> -0.1757292042 | M45: =M23/Pasiva!L16 -> -0.0244648318 | N45: =N23/Pasiva!M16 -> -0.1594267801 | O45: =O23/Pasiva!N16 -> -1 | P45: =P23/Pasiva!O16 ->  | Q45: =Q23/Pasiva!P16 ->  | R45: =R23/Pasiva!Q16 ->  | S45: =S23/Pasiva!R16 ->  | T45: =T23/Pasiva!S16 ->  | U45: =U23/Pasiva!T16 ->  | V45: =V23/Pasiva!U16 -> 

Sheet Vertikalní
H4: Položky | I4: 2012 | J4: 2013 | K4: 2014 | L4: 2015 | M4: 2016 | N4: 2017 | O4: 2018 | P4: 2019 | Q4: 2020 | R4: 2021 | S4: 2022 | T4: 2023 | U4: 2024 | V4: 2025
H5: Aktiva celkem | I5: 1 | J5: 1 | K5: 1 | L5: 1 | M5: 1 | N5: 1 | O5: 1 | P5: 1 | Q5: 1 | R5: 1 | S5: 1 | T5: 1 | U5: 1 | V5: 1
H6: Dlouhodobý majetek | I6: =Aktiva!I7/Aktiva!I6 -> 0.2447597549 | J6: =Aktiva!J7/Aktiva!J6 -> 0.1614156237 | K6: =Aktiva!K7/Aktiva!K6 -> 0.1187384045 | L6: =Aktiva!L7/Aktiva!L6 -> 0.3210641399 | M6: =Aktiva!M7/Aktiva!M6 -> 0.3946791862 | N6: =Aktiva!N7/Aktiva!N6 -> 0.4627282492 | O6: =Aktiva!O7/Aktiva!O6 ->  | P6: =Aktiva!P7/Aktiva!P6 ->  | Q6: =Aktiva!Q7/Aktiva!Q6 ->  | R6: =Aktiva!R7/Aktiva!R6 ->  | S6: =Aktiva!S7/Aktiva!S6 ->  | T6: =Aktiva!T7/Aktiva!T6 ->  | U6: =Aktiva!U7/Aktiva!U6 ->  | V6: =Aktiva!V7/Aktiva!V6 -> 
H7: Dlouhodobý nehmotný majetek
H8: Dlouhodobý hmotný majetek | I8: =Aktiva!I8/Aktiva!I6 -> 0.2447597549 | J8: =Aktiva!J8/Aktiva!J6 -> 0.1614156237 | K8: =Aktiva!K8/Aktiva!K6 -> 0.1187384045 | L8: =Aktiva!L8/Aktiva!L6 -> 0.3210641399 | M8: =Aktiva!M8/Aktiva!M6 -> 0.3946791862 | N8: =Aktiva!N8/Aktiva!N6 -> 0.4627282492 | O8: =Aktiva!O8/Aktiva!O6 ->  | P8: =Aktiva!P8/Aktiva!P6 ->  | Q8: =Aktiva!Q8/Aktiva!Q6 ->  | R8: =Aktiva!R8/Aktiva!R6 ->  | S8: =Aktiva!S8/Aktiva!S6 ->  | T8: =Aktiva!T8/Aktiva!T6 ->  | U8: =Aktiva!U8/Aktiva!U6 ->  | V8: =Aktiva!V8/Aktiva!V6 -> 
H9: Oběžná aktiva | I9: =Aktiva!I10/Aktiva!I6 -> 0.7478232828 | J9: =Aktiva!J10/Aktiva!J6 -> 0.8347000432 | K9: =Aktiva!K10/Aktiva!K6 -> 0.879406308 | L9: =Aktiva!L10/Aktiva!L6 -> 0.6723760933 | M9: =Aktiva!M10/Aktiva!M6 -> 0.5940532081 | N9: =Aktiva!N10/Aktiva!N6 -> 0.5321160043 | O9: =Aktiva!O10/Aktiva!O6 ->  | P9: =Aktiva!P10/Aktiva!P6 ->  | Q9: =Aktiva!Q10/Aktiva!Q6 ->  | R9: =Aktiva!R10/Aktiva!R6 ->  | S9: =Aktiva!S10/Aktiva!S6 ->  | T9: =Aktiva!T10/Aktiva!T6 ->  | U9: =Aktiva!U10/Aktiva!U6 ->  | V9: =Aktiva!V10/Aktiva!V6 -> 
H10: Zásoby
H11: Dlouhodobé pohledávky | I11: =Aktiva!I12/Aktiva!I6 -> 0.008706868752 | J11: =Aktiva!J12/Aktiva!J6 -> 0.01769529564 | K11: =Aktiva!K12/Aktiva!K6 -> 0.007730364873 | L11: =Aktiva!L12/Aktiva!L6 -> 0.009110787172 | M11: =Aktiva!M12/Aktiva!M6 -> 0.01627543036 | N11: =Aktiva!N12/Aktiva!N6 -> 0 | O11: =Aktiva!O12/Aktiva!O6 ->  | P11: =Aktiva!P12/Aktiva!P6 ->  | Q11: =Aktiva!Q12/Aktiva!Q6 ->  | R11: =Aktiva!R12/Aktiva!R6 ->  | S11: =Aktiva!S12/Aktiva!S6 ->  | T11: =Aktiva!T12/Aktiva!T6 ->  | U11: =Aktiva!U12/Aktiva!U6 ->  | V11: =Aktiva!V12/Aktiva!V6 -> 
H12: Krátkodobé pohledávky | I12: =Aktiva!I16/Aktiva!I6 -> 0.7184779104 | J12: =Aktiva!J16/Aktiva!J6 -> 0.8066465257 | K12: =Aktiva!K16/Aktiva!K6 -> 0.3317872604 | L12: =Aktiva!L16/Aktiva!L6 -> 0.5313411079 | M12: =Aktiva!M16/Aktiva!M6 -> 0.5455399061 | N12: =Aktiva!N16/Aktiva!N6 -> 0.4736842105 | O12: =Aktiva!O16/Aktiva!O6 ->  | P12: =Aktiva!P16/Aktiva!P6 ->  | Q12: =Aktiva!Q16/Aktiva!Q6 ->  | R12: =Aktiva!R16/Aktiva!R6 ->  | S12: =Aktiva!S16/Aktiva!S6 ->  | T12: =Aktiva!T16/Aktiva!T6 ->  | U12: =Aktiva!U16/Aktiva!U6 ->  | V12: =Aktiva!V16/Aktiva!V6 -> 
H13: Krátkodobý finanční majetek | I13: =Aktiva!I21/Aktiva!I6 -> 0.02063850371 | J13: =Aktiva!J21/Aktiva!J6 -> 0.01035822184 | K13: =Aktiva!K21/Aktiva!K6 -> 0.5398886827 | L13: =Aktiva!L21/Aktiva!L6 -> 0.1319241983 | M13: =Aktiva!M21/Aktiva!M6 -> 0.03223787167 | N13: =Aktiva!N21/Aktiva!N6 -> 0.05843179377 | O13: =Aktiva!O21/Aktiva!O6 ->  | P13: =Aktiva!P21/Aktiva!P6 ->  | Q13: =Aktiva!Q21/Aktiva!Q6 ->  | R13: =Aktiva!R21/Aktiva!R6 ->  | S13: =Aktiva!S21/Aktiva!S6 ->  | T13: =Aktiva!T21/Aktiva!T6 ->  | U13: =Aktiva!U21/Aktiva!U6 ->  | V13: =Aktiva!V21/Aktiva!V6 -> 
H14: Časové rozlišení | I14: =Aktiva!I24/Aktiva!I6 -> 0.00741696227 | J14: =Aktiva!J24/Aktiva!J6 -> 0.003884333189 | K14: =Aktiva!K24/Aktiva!K6 -> 0.00185528757 | L14: =Aktiva!L24/Aktiva!L6 -> 0.006559766764 | M14: =Aktiva!M24/Aktiva!M6 -> 0.01126760563 | N14: =Aktiva!N24/Aktiva!N6 -> 0.005155746509 | O14: =Aktiva!O24/Aktiva!O6 ->  | P14: =Aktiva!P24/Aktiva!P6 ->  | Q14: =Aktiva!Q24/Aktiva!Q6 ->  | R14: =Aktiva!R24/Aktiva!R6 ->  | S14: =Aktiva!S24/Aktiva!S6 ->  | T14: =Aktiva!T24/Aktiva!T6 ->  | U14: =Aktiva!U24/Aktiva!U6 ->  | V14: =Aktiva!V24/Aktiva!V6 -> 
H17: Položky | I17: 2012 | J17: 2013 | K17: 2014 | L17: 2015 | M17: 2016 | N17: 2017 | O17: 2018 | P17: 2019 | Q17: 2020 | R17: 2021 | S17: 2022 | T17: 2023 | U17: 2024 | V17: 2025
H18: Pasiva celkem | I18: 1 | J18: 1 | K18: 1 | L18: 1 | M18: 1 | N18: 1 | O18: 1 | P18: 1 | Q18: 1 | R18: 1 | S18: 1 | T18: 1 | U18: 1 | V18: 1
H19: Vlastní kapitál | I19: =Pasiva!I6/Pasiva!I5 -> 0.02801932367 | J19: =Pasiva!J6/Pasiva!J5 -> -0.2071644368 | K19: =Pasiva!K6/Pasiva!K5 -> 0.06338899196 | L19: =Pasiva!L6/Pasiva!L5 -> 0.1177113703 | M19: =Pasiva!M6/Pasiva!M5 -> 0.1696400626 | N19: =Pasiva!N6/Pasiva!N5 -> 0.1492029756 | O19: =Pasiva!O6/Pasiva!O5 ->  | P19: =Pasiva!P6/Pasiva!P5 ->  | Q19: =Pasiva!Q6/Pasiva!Q5 ->  | R19: =Pasiva!R6/Pasiva!R5 ->  | S19: =Pasiva!S6/Pasiva!S5 ->  | T19: =Pasiva!T6/Pasiva!T5 ->  | U19: =Pasiva!U6/Pasiva!U5 ->  | V19: =Pasiva!V6/Pasiva!V5 -> 
H20: VH minulých let | I20: =Pasiva!I9/Pasiva!I5 -> -0.08373590982 | J20: =Pasiva!J9/Pasiva!J5 -> -0.04920155373 | K20: =Pasiva!K9/Pasiva!K5 -> -0.20995671 | L20: =Pasiva!L9/Pasiva!L5 -> 0.001822157434 | M20: =Pasiva!M9/Pasiva!M5 -> 0.03849765258 | N20: =Pasiva!N9/Pasiva!N5 -> 0.07290116897 | O20: =Pasiva!O9/Pasiva!O5 ->  | P20: =Pasiva!P9/Pasiva!P5 ->  | Q20: =Pasiva!Q9/Pasiva!Q5 ->  | R20: =Pasiva!R9/Pasiva!R5 ->  | S20: =Pasiva!S9/Pasiva!S5 ->  | T20: =Pasiva!T9/Pasiva!T5 ->  | U20: =Pasiva!U9/Pasiva!U5 ->  | V20: =Pasiva!V9/Pasiva!V5 -> 
H21: VH běžného účetního období | I21: =Pasiva!I11/Pasiva!I5 -> 0.04734299517 | J21: =Pasiva!J11/Pasiva!J5 -> -0.2442813984 | K21: =Pasiva!K11/Pasiva!K5 -> 0.2115027829 | L21: =Pasiva!L11/Pasiva!L5 -> 0.04300291545 | M21: =Pasiva!M11/Pasiva!M5 -> 0.06854460094 | N21: =Pasiva!N11/Pasiva!N5 -> 0.0340063762 | O21: =Pasiva!O11/Pasiva!O5 ->  | P21: =Pasiva!P11/Pasiva!P5 ->  | Q21: =Pasiva!Q11/Pasiva!Q5 ->  | R21: =Pasiva!R11/Pasiva!R5 ->  | S21: =Pasiva!S11/Pasiva!S5 ->  | T21: =Pasiva!T11/Pasiva!T5 ->  | U21: =Pasiva!U11/Pasiva!U5 ->  | V21: =Pasiva!V11/Pasiva!V5 -> 
H22: Cizí zdroje | I22: =Pasiva!I12/Pasiva!I5 -> 0.9716586151 | J22: =Pasiva!J12/Pasiva!J5 -> 1.201553733 | K22: =Pasiva!K12/Pasiva!K5 -> 0.9359925788 | L22: =Pasiva!L12/Pasiva!L5 -> 0.8815597668 | M22: =Pasiva!M12/Pasiva!M5 -> 0.8297339593 | N22: =Pasiva!N12/Pasiva!N5 -> 0.8503719447 | O22: =Pasiva!O12/Pasiva!O5 ->  | P22: =Pasiva!P12/Pasiva!P5 ->  | Q22: =Pasiva!Q12/Pasiva!Q5 ->  | R22: =Pasiva!R12/Pasiva!R5 ->  | S22: =Pasiva!S12/Pasiva!S5 ->  | T22: =Pasiva!T12/Pasiva!T5 ->  | U22: =Pasiva!U12/Pasiva!U5 ->  | V22: =Pasiva!V12/Pasiva!V5 -> 
H23: Rezervy
H24: Dlouhodobé závazky | I24: =Pasiva!I14/Pasiva!I5 -> 0.2376811594 | J24: =Pasiva!J14/Pasiva!J5 -> 0.9188605956 | K24: =Pasiva!K14/Pasiva!K5 -> 0.07730364873 | L24: =Pasiva!L14/Pasiva!L5 -> 0.04737609329 | M24: =Pasiva!M14/Pasiva!M5 -> 0.130829421 | N24: =Pasiva!N14/Pasiva!N5 -> 0.451434644 | O24: =Pasiva!O14/Pasiva!O5 ->  | P24: =Pasiva!P14/Pasiva!P5 ->  | Q24: =Pasiva!Q14/Pasiva!Q5 ->  | R24: =Pasiva!R14/Pasiva!R5 ->  | S24: =Pasiva!S14/Pasiva!S5 ->  | T24: =Pasiva!T14/Pasiva!T5 ->  | U24: =Pasiva!U14/Pasiva!U5 ->  | V24: =Pasiva!V14/Pasiva!V5 -> 
H25: Krátkodobé závazky | I25: =Pasiva!I16/Pasiva!I5 -> 0.7339774557 | J25: =Pasiva!J16/Pasiva!J5 -> 0.2826931377 | K25: =Pasiva!K16/Pasiva!K5 -> 0.8586889301 | L25: =Pasiva!L16/Pasiva!L5 -> 0.8341836735 | M25: =Pasiva!M16/Pasiva!M5 -> 0.6989045383 | N25: =Pasiva!N16/Pasiva!N5 -> 0.3989373007 | O25: =Pasiva!O16/Pasiva!O5 ->  | P25: =Pasiva!P16/Pasiva!P5 ->  | Q25: =Pasiva!Q16/Pasiva!Q5 ->  | R25: =Pasiva!R16/Pasiva!R5 ->  | S25: =Pasiva!S16/Pasiva!S5 ->  | T25: =Pasiva!T16/Pasiva!T5 ->  | U25: =Pasiva!U16/Pasiva!U5 ->  | V25: =Pasiva!V16/Pasiva!V5 -> 

Sheet Rozdilové
F5: ROZDILOVÉ UKAZATELE
F7: ČISTÝ PRACOVNÍ KAPITÁL | I7: 2012 | J7: 2013 | K7: 2014 | L7: 2015 | M7: 2016 | N7: 2017 | O7: 2018 | P7: 2019 | Q7: 2020 | R7: 2021 | S7: 2022 | T7: 2023 | U7: 2024 | V7: 2025
F8: Oběžná aktiva | I8: =Aktiva!I10 -> 2319 | J8: =Aktiva!J10 -> 1934 | K8: =Aktiva!K10 -> 2844 | L8: =Aktiva!L10 -> 1845 | M8: =Aktiva!M10 -> 1898 | N8: =Aktiva!N10 -> 2477 | O8: =Aktiva!O10 -> 0 | P8: =Aktiva!P10 -> 0 | Q8: =Aktiva!Q10 -> 0 | R8: =Aktiva!R10 -> 0 | S8: =Aktiva!S10 -> 0 | T8: =Aktiva!T10 -> 0 | U8: =Aktiva!U10 -> 0 | V8: =Aktiva!V10 -> 0
F9: Krátkodobé závazky | I9: =Pasiva!I16 -> 2279 | J9: =Pasiva!J16 -> 655 | K9: =Pasiva!K16 -> 2777 | L9: =Pasiva!L16 -> 2289 | M9: =Pasiva!M16 -> 2233 | N9: =Pasiva!N16 -> 1877 | O9: =Pasiva!O16 -> 0 | P9: =Pasiva!P16 -> 0 | Q9: =Pasiva!Q16 -> 0 | R9: =Pasiva!R16 -> 0 | S9: =Pasiva!S16 -> 0 | T9: =Pasiva!T16 -> 0 | U9: =Pasiva!U16 -> 0 | V9: =Pasiva!V16 -> 0
F10: ČPK | I10: =I8-I9 -> 40 | J10: 1279 | K10: 67 | L10: -444 | M10: -335 | N10: =N8-N9 -> 600 | O10: 0 | P10: 0 | Q10: 0 | R10: 0 | S10: 0 | T10: 0 | U10: 0 | V10: 0
F11: ČISTÉ POHOTOVOSTNÍ PROSTŘEDKY | I11: 2012 | J11: 2013 | K11: 2014 | L11: 2015 | M11: 2016 | N11: 2017 | O11: 2018 | P11: 2019 | Q11: 2020 | R11: 2021 | S11: 2022 | T11: 2023 | U11: 2024 | V11: 2025
F12: Pohotové fin. prostředky | I12: =Aktiva!I21 -> 64 | J12: =Aktiva!J21 -> 24 | K12: =Aktiva!K21 -> 1746 | L12: =Aktiva!L21 -> 362 | M12: =Aktiva!M21 -> 103 | N12: =Aktiva!N21 -> 272 | O12: =Aktiva!O21 -> 0 | P12: =Aktiva!P21 -> 0 | Q12: =Aktiva!Q21 -> 0 | R12: =Aktiva!R21 -> 0 | S12: =Aktiva!S21 -> 0 | T12: =Aktiva!T21 -> 0 | U12: =Aktiva!U21 -> 0 | V12: =Aktiva!V21 -> 0
F13: Okamžité splatné závazky | I13: =Pasiva!I16 -> 2279 | J13: =Pasiva!J16 -> 655 | K13: =Pasiva!K16 -> 2777 | L13: =Pasiva!L16 -> 2289 | M13: =Pasiva!M16 -> 2233 | N13: =Pasiva!N16 -> 1877 | O13: =Pasiva!O16 -> 0 | P13: =Pasiva!P16 -> 0 | Q13: =Pasiva!Q16 -> 0 | R13: =Pasiva!R16 -> 0 | S13: =Pasiva!S16 -> 0 | T13: =Pasiva!T16 -> 0 | U13: =Pasiva!U16 -> 0 | V13: =Pasiva!V16 -> 0
F14: ČPP | I14: =I12-I13 -> -2215 | J14: -631 | K14: -1031 | L14: -1927 | M14: -2130 | N14: =N12-N13 -> -1605 | O14: 0 | P14: 0 | Q14: 0 | R14: 0 | S14: 0 | T14: 0 | U14: 0 | V14: 0
F15: ČISTÝ PENĚŽNĚ-POHLEDÁVKOVÝ FIN. FOND | I15: 2012 | J15: 2013 | K15: 2014 | L15: 2015 | M15: 2016 | N15: 2017 | O15: 2018 | P15: 2019 | Q15: 2020 | R15: 2021 | S15: 2022 | T15: 2023 | U15: 2024 | V15: 2025
F16: Oběžná aktiva | I16: =Aktiva!I10 -> 2319 | J16: =Aktiva!J10 -> 1934 | K16: =Aktiva!K10 -> 2844 | L16: =Aktiva!L10 -> 1845 | M16: =Aktiva!M10 -> 1898 | N16: =Aktiva!N10 -> 2477 | O16: =Aktiva!O10 -> 0 | P16: =Aktiva!P10 -> 0 | Q16: =Aktiva!Q10 -> 0 | R16: =Aktiva!R10 -> 0 | S16: =Aktiva!S10 -> 0 | T16: =Aktiva!T10 -> 0 | U16: =Aktiva!U10 -> 0 | V16: =Aktiva!V10 -> 0
F17: Zásoby | I17: 4 | J17: =Aktiva!J11 -> 1910 | K17: 0 | L17: 0 | M17: 0 | N17: 0 | O17: 0 | P17: 0 | Q17: 0 | R17: 0 | S17: 0 | T17: 0 | U17: 0 | V17: 0
F18: Nelikvidní pohledávky | I18: =Aktiva!I18 -> 0 | J18: =Aktiva!J18 -> 0 | K18: =Aktiva!K18 -> 27 | L18: =Aktiva!L18 -> 62 | M18: =Aktiva!M18 -> 7 | N18: =Aktiva!N18 -> 30 | O18: =Aktiva!O18 -> 0 | P18: =Aktiva!P18 -> 0 | Q18: =Aktiva!Q18 -> 0 | R18: =Aktiva!R18 -> 0 | S18: =Aktiva!S18 -> 0 | T18: =Aktiva!T18 -> 0 | U18: =Aktiva!U18 -> 0 | V18: =Aktiva!V18 -> 0
F19: Kr. závazky | I19: =Pasiva!I16 -> 2279 | J19: =Pasiva!J16 -> 655 | K19: =Pasiva!K16 -> 2777 | L19: =Pasiva!L16 -> 2289 | M19: =Pasiva!M16 -> 2233 | N19: =Pasiva!N16 -> 1877 | O19: =Pasiva!O16 -> 0 | P19: =Pasiva!P16 -> 0 | Q19: =Pasiva!Q16 -> 0 | R19: =Pasiva!R16 -> 0 | S19: =Pasiva!S16 -> 0 | T19: =Pasiva!T16 -> 0 | U19: =Pasiva!U16 -> 0 | V19: =Pasiva!V16 -> 0
F20: ČPPF | I20: =I16-I17-I18-I19 -> 36 | J20: -631 | K20: 40 | L20: -506 | M20: -342 | N20: =N16-N17-N18-N19 -> 570 | O20: 0 | P20: 0 | Q20: 0 | R20: 0 | S20: 0 | T20: 0 | U20: 0 | V20: 0

Sheet Poměrové
G4: LIKVIDITA
G5: OKAMŽITÁ LIKVIDITA | I5: 2012 | J5: 2013 | K5: 2014 | L5: 2015 | M5: 2016 | N5: 2017 | O5: 2018 | P5: 2019 | Q5: 2020 | R5: 2021 | S5: 2022 | T5: 2023 | U5: 2024 | V5: 2025
G6: Krátkodobý fin. majetek | I6: =Aktiva!I21 -> 64 | J6: =Aktiva!J21 -> 24 | K6: =Aktiva!K21 -> 1746 | L6: =Aktiva!L21 -> 362 | M6: =Aktiva!M21 -> 103 | N6: =Aktiva!N21 -> 272 | O6: =Aktiva!O21 -> 0 | P6: =Aktiva!P21 -> 0 | Q6: =Aktiva!Q21 -> 0 | R6: =Aktiva!R21 -> 0 | S6: =Aktiva!S21 -> 0 | T6: =Aktiva!T21 -> 0 | U6: =Aktiva!U21 -> 0 | V6: =Aktiva!V21 -> 0
G7: Krátkodobé závazky | I7: =Pasiva!I16 -> 2279 | J7: =Pasiva!J16 -> 655 | K7: =Pasiva!K16 -> 2777 | L7: =Pasiva!L16 -> 2289 | M7: =Pasiva!M16 -> 2233 | N7: =Pasiva!N16 -> 1877 | O7: =Pasiva!O16 -> 0 | P7: =Pasiva!P16 -> 0 | Q7: =Pasiva!Q16 -> 0 | R7: =Pasiva!R16 -> 0 | S7: =Pasiva!S16 -> 0 | T7: =Pasiva!T16 -> 0 | U7: =Pasiva!U16 -> 0 | V7: =Pasiva!V16 -> 0
G8: Okamžitá likvidita | I8: =I6/I7 -> 0.02808249232 | J8: 0.03664122137 | K8: 0.6287360461 | L8: 0.1581476627 | M8: 0.04612628751 | N8: 0.1449120938 | O8: =O6/O7 -> 
G9: POHOTOVÁ LIKVIDITA | I9: 2012 | J9: 2013 | K9: 2014 | L9: 2015 | M9: 2016 | N9: 2017 | O9: 2018 | P9: 2019 | Q9: 2020 | R9: 2021 | S9: 2022 | T9: 2023 | U9: 2024 | V9: 2025
G10: Oběžná aktiva | I10: =Aktiva!I10 -> 2319 | J10: =Aktiva!J10 -> 1934 | K10: =Aktiva!K10 -> 2844 | L10: =Aktiva!L10 -> 1845 | M10: =Aktiva!M10 -> 1898 | N10: =Aktiva!N10 -> 2477 | O10: =Aktiva!O10 -> 0 | P10: =Aktiva!P10 -> 0 | Q10: =Aktiva!Q10 -> 0 | R10: =Aktiva!R10 -> 0 | S10: =Aktiva!S10 -> 0 | T10: =Aktiva!T10 -> 0 | U10: =Aktiva!U10 -> 0 | V10: =Aktiva!V10 -> 0
G11: Zásoby | I11: 4
G12: Krátkodobé závazky | I12: =Pasiva!I16 -> 2279 | J12: =Pasiva!J16 -> 655 | K12: =Pasiva!K16 -> 2777 | L12: =Pasiva!L16 -> 2289 | M12: =Pasiva!M16 -> 2233 | N12: =Pasiva!N16 -> 1877 | O12: =Pasiva!O16 -> 0 | P12: =Pasiva!P16 -> 0 | Q12: =Pasiva!Q16 -> 0 | R12: =Pasiva!R16 -> 0 | S12: =Pasiva!S16 -> 0 | T12: =Pasiva!T16 -> 0 | U12: =Pasiva!U16 -> 0 | V12: =Pasiva!V16 -> 0
G13: Pohotová likvidita | I13: =(I10-I11)/I12 -> 1.015796402 | J13: 2.952671756 | K13: 1.024126755 | L13: 0.8060288336 | M13: 0.8499776086 | N13: 1.31965903 | O13: =(O10-O11)/O12 -> 
G14: BĚŽNÁ LIKVIDITA | I14: 2012 | J14: 2013 | K14: 2014 | L14: 2015 | M14: 2016 | N14: 2017 | O14: 2018 | P14: 2019 | Q14: 2020 | R14: 2021 | S14: 2022 | T14: 2023 | U14: 2024 | V14: 2025
G15: Oběžná aktiva | I15: =Aktiva!I10 -> 2319 | J15: =Aktiva!J10 -> 1934 | K15: =Aktiva!K10 -> 2844 | L15: =Aktiva!L10 -> 1845 | M15: =Aktiva!M10 -> 1898 | N15: =Aktiva!N10 -> 2477 | O15: =Aktiva!O10 -> 0 | P15: =Aktiva!P10 -> 0 | Q15: =Aktiva!Q10 -> 0 | R15: =Aktiva!R10 -> 0 | S15: =Aktiva!S10 -> 0 | T15: =Aktiva!T10 -> 0 | U15: =Aktiva!U10 -> 0 | V15: =Aktiva!V10 -> 0
G16: Krátkodobé závazky | I16: =Pasiva!I16 -> 2279 | J16: =Pasiva!J16 -> 655 | K16: =Pasiva!K16 -> 2777 | L16: =Pasiva!L16 -> 2289 | M16: =Pasiva!M16 -> 2233 | N16: =Pasiva!N16 -> 1877 | O16: =Pasiva!O16 -> 0 | P16: =Pasiva!P16 -> 0 | Q16: =Pasiva!Q16 -> 0 | R16: =Pasiva!R16 -> 0 | S16: =Pasiva!S16 -> 0 | T16: =Pasiva!T16 -> 0 | U16: =Pasiva!U16 -> 0 | V16: =Pasiva!V16 -> 0
G17: Běžná likvidita | I17: =I15/I16 -> 1.017551558 | J17: 2.952671756 | K17: 1.024126755 | L17: 0.8060288336 | M17: 0.8499776086 | N17: 1.31965903 | O17: =O15/O16 -> 
G19: Rentabilita
G20: Rentabilita celkového kapitalu | I20: 2012 | J20: 2013 | K20: 2014 | L20: 2015 | M20: 2016 | N20: 2017 | O20: 2018 | P20: 2019 | Q20: 2020 | R20: 2021 | S20: 2022 | T20: 2023 | U20: 2024 | V20: 2025
G21: EBIT | I21: =VZZ!I34+VZZ!I31+VZZ!I25 -> 157 | J21: =VZZ!J34+VZZ!J31+VZZ!J25 -> -566 | K21: =VZZ!K34+VZZ!K31+VZZ!K25 -> 748 | L21: =VZZ!L34+VZZ!L31+VZZ!L25 -> 218 | M21: =VZZ!M34+VZZ!M31+VZZ!M25 -> 432 | N21: =VZZ!N34+VZZ!N31+VZZ!N25 -> 395 | O21: =VZZ!O34+VZZ!O31+VZZ!O25 -> 0 | P21: =VZZ!P34+VZZ!P31+VZZ!P25 -> 0 | Q21: =VZZ!Q34+VZZ!Q31+VZZ!Q25 -> 0 | R21: =VZZ!R34+VZZ!R31+VZZ!R25 -> 0 | S21: =VZZ!S34+VZZ!S31+VZZ!S25 -> 0 | T21: =VZZ!T34+VZZ!T31+VZZ!T25 -> 0 | U21: =VZZ!U34+VZZ!U31+VZZ!U25 -> 0 | V21: =VZZ!V34+VZZ!V31+VZZ!V25 -> 0
G22: Celková aktiva | I22: =Aktiva!I6 -> 3101 | J22: =Aktiva!J6 -> 2317 | K22: =Aktiva!K6 -> 3234 | L22: =Aktiva!L6 -> 2744 | M22: =Aktiva!M6 -> 3195 | N22: =Aktiva!N6 -> 4655 | O22: =Aktiva!O6 -> 0 | P22: =Aktiva!P6 -> 0 | Q22: =Aktiva!Q6 -> 0 | R22: =Aktiva!R6 -> 0 | S22: =Aktiva!S6 -> 0 | T22: =Aktiva!T6 -> 0 | U22: =Aktiva!U6 -> 0 | V22: =Aktiva!V6 -> 0
G23: ROA | I23: =I21/I22 -> 0.05062882941 | J23: -0.2442813984 | K23: 0.231292517 | L23: 0.07944606414 | M23: 0.1352112676 | N23: 0.08485499463 | O23: =O21/O22 -> 
G24: Rentabilita vloženého kapitalu | I24: 2012 | J24: 2013 | K24: 2014 | L24: 2015 | M24: 2016 | N24: 2017 | O24: 2018 | P24: 2019 | Q24: 2020 | R24: 2021 | S24: 2022 | T24: 2023 | U24: 2024 | V24: 2025
G25: EAT | I25: =VZZ!I33 -> 147 | J25: =VZZ!J33 -> -566 | K25: =VZZ!K33 -> 684 | L25: =VZZ!L33 -> 118 | M25: =VZZ!M33 -> 219 | N25: =VZZ!N33 -> 160 | O25: =VZZ!O33 -> 0 | P25: =VZZ!P33 -> 0 | Q25: =VZZ!Q33 -> 0 | R25: =VZZ!R33 -> 0 | S25: =VZZ!S33 -> 0 | T25: =VZZ!T33 -> 0 | U25: =VZZ!U33 -> 0 | V25: =VZZ!V33 -> 0
G26: Kratkodobé cizí zdroje | I26: =Pasiva!I16 -> 2279 | J26: =Pasiva!J16 -> 655 | K26: =Pasiva!K16 -> 2777 | L26: =Pasiva!L16 -> 2289 | M26: =Pasiva!M16 -> 2233 | N26: =Pasiva!N16 -> 1877 | O26: =Pasiva!O16 -> 0 | P26: =Pasiva!P16 -> 0 | Q26: =Pasiva!Q16 -> 0 | R26: =Pasiva!R16 -> 0 | S26: =Pasiva!S16 -> 0 | T26: =Pasiva!T16 -> 0 | U26: =Pasiva!U16 -> 0 | V26: =Pasiva!V16 -> 0
G27: Celkový kapitál | I27: =Pasiva!I5 -> 3105 | J27: =Pasiva!J5 -> 2317 | K27: =Pasiva!K5 -> 3234 | L27: =Pasiva!L5 -> 2744 | M27: =Pasiva!M5 -> 3195 | N27: =Pasiva!N5 -> 4705 | O27: =Pasiva!O5 -> 0 | P27: =Pasiva!P5 -> 0 | Q27: =Pasiva!Q5 -> 0 | R27: =Pasiva!R5 -> 0 | S27: =Pasiva!S5 -> 0 | T27: =Pasiva!T5 -> 0 | U27: =Pasiva!U5 -> 0 | V27: =Pasiva!V5 -> 0
G28: ROI | I28: =I25/(I27-I26) -> 0.1779661017 | J28: -0.3405535499 | K28: 1.496717724 | L28: 0.2593406593 | M28: 0.2276507277 | N28: 0.05657708628 | O28: =O25/(O27-O26) -> 
G29: Rentabilita vlastního kapitalu | I29: 2012 | J29: 2013 | K29: 2014 | L29: 2015 | M29: 2016 | N29: 2017 | O29: 2018 | P29: 2019 | Q29: 2020 | R29: 2021 | S29: 2022 | T29: 2023 | U29: 2024 | V29: 2025
G30: EAT | I30: =VZZ!I34 -> 147 | J30: =VZZ!J34 -> -566 | K30: =VZZ!K34 -> 684 | L30: =VZZ!L34 -> 118 | M30: =VZZ!M34 -> 219 | N30: =VZZ!N34 -> 160 | O30: =VZZ!O34 -> 0 | P30: =VZZ!P34 -> 0 | Q30: =VZZ!Q34 -> 0 | R30: =VZZ!R34 -> 0 | S30: =VZZ!S34 -> 0 | T30: =VZZ!T34 -> 0 | U30: =VZZ!U34 -> 0 | V30: =VZZ!V34 -> 0
G31: Vlastní kapitál | I31: =Pasiva!I6 -> 87 | J31: =Pasiva!J6 -> -480 | K31: =Pasiva!K6 -> 205 | L31: =Pasiva!L6 -> 323 | M31: =Pasiva!M6 -> 542 | N31: =Pasiva!N6 -> 702 | O31: =Pasiva!O6 -> 0 | P31: =Pasiva!P6 -> 0 | Q31: =Pasiva!Q6 -> 0 | R31: =Pasiva!R6 -> 0 | S31: =Pasiva!S6 -> 0 | T31: =Pasiva!T6 -> 0 | U31: =Pasiva!U6 -> 0 | V31: =Pasiva!V6 -> 0
G32: ROE | I32: =I30/I31 -> 1.689655172 | J32: 1.179166667 | K32: 3.336585366 | L32: 0.3653250774 | M32: 0.4040590406 | N32: 0.2279202279 | O32: =O30/O31 -> 
G33: Rentabilita tržeb | I33: 2012 | J33: 2013 | K33: 2014 | L33: 2015 | M33: 2016 | N33: 2017 | O33: 2018 | P33: 2019 | Q33: 2020 | R33: 2021 | S33: 2022 | T33: 2023 | U33: 2024 | V33: 2025
G34: EAT | I34: =I30 -> 147 | J34: -566 | K34: 684 | L34: 118 | M34: 219 | N34: 160 | O34: =O30 -> 0 | P34: 0 | Q34: 0 | R34: 0 | S34: 0 | T34: 0 | U34: 0 | V34: 0
G35: Tržby | I35: =VZZ!I4+VZZ!I5 -> 10533 | J35: =VZZ!J4+VZZ!J5 -> 5779 | K35: =VZZ!K4+VZZ!K5 -> 7196 | L35: =VZZ!L4+VZZ!L5 -> 12769 | M35: =VZZ!M4+VZZ!M5 -> 14484 | N35: =VZZ!N4+VZZ!N5 -> 17760 | O35: =VZZ!O4+VZZ!O5 -> 0 | P35: =VZZ!P4+VZZ!P5 -> 0 | Q35: =VZZ!Q4+VZZ!Q5 -> 0 | R35: =VZZ!R4+VZZ!R5 -> 0 | S35: =VZZ!S4+VZZ!S5 -> 0 | T35: =VZZ!T4+VZZ!T5 -> 0 | U35: =VZZ!U4+VZZ!U5 -> 0 | V35: =VZZ!V4+VZZ!V5 -> 0
G36: ROS | I36: =I34/I35 -> 0.01395613785 | J36: -0.09794082021 | K36: 0.09505280712 | L36: 0.009241130864 | M36: 0.01512013256 | N36: 0.009009009009 | O36: =O34/O35 -> 
G37: Rentabilita investováného kapitalu | I37: 2012 | J37: 2013 | K37: 2014 | L37: 2015 | M37: 2016 | N37: 2017 | O37: 2018 | P37: 2019 | Q37: 2020 | R37: 2021 | S37: 2022 | T37: 2023 | U37: 2024 | V37: 2025
G38: EBIT | I38: =I21 -> 157 | J38: -566 | K38: 748 | L38: 218 | M38: 432 | N38: 395 | O38: =O21 -> 0 | P38: 0 | Q38: 0 | R38: 0 | S38: 0 | T38: 0 | U38: 0 | V38: 0
G39: Dlouhodobé závazky | I39: =Pasiva!I14 -> 738 | J39: =Pasiva!J14 -> 2129 | K39: =Pasiva!K14 -> 250 | L39: =Pasiva!L14 -> 130 | M39: =Pasiva!M14 -> 418 | N39: =Pasiva!N14 -> 2124 | O39: =Pasiva!O14 -> 0 | P39: =Pasiva!P14 -> 0 | Q39: =Pasiva!Q14 -> 0 | R39: =Pasiva!R14 -> 0 | S39: =Pasiva!S14 -> 0 | T39: =Pasiva!T14 -> 0 | U39: =Pasiva!U14 -> 0 | V39: =Pasiva!V14 -> 0
G40: Vlastní kapitál | I40: =I31 -> 87 | J40: -480 | K40: 205 | L40: 323 | M40: 542 | N40: 702 | O40: =O31 -> 0 | P40: 0 | Q40: 0 | R40: 0 | S40: 0 | T40: 0 | U40: 0 | V40: 0
G41: ROCE | I41: =I38/(I39+I40) -> 0.1903030303 | J41: -0.3432383263 | K41: 1.643956044 | L41: 0.4812362031 | M41: 0.45 | N41: 0.1397735315 | O41: =O38/(O39+O40) -> 
G43: Zadluženost
G44: Celková zadluženost | I44: 2012 | J44: 2013 | K44: 2014 | L44: 2015 | M44: 2016 | N44: 2017 | O44: 2018 | P44: 2019 | Q44: 2020 | R44: 2021 | S44: 2022 | T44: 2023 | U44: 2024 | V44: 2025
G45: Cizí zdroje | I45: =Pasiva!I12 -> 3017 | J45: =Pasiva!J12 -> 2784 | K45: =Pasiva!K12 -> 3027 | L45: =Pasiva!L12 -> 2419 | M45: =Pasiva!M12 -> 2651 | N45: =Pasiva!N12 -> 4001 | O45: =Pasiva!O12 -> 0 | P45: =Pasiva!P12 -> 0 | Q45: =Pasiva!Q12 -> 0 | R45: =Pasiva!R12 -> 0 | S45: =Pasiva!S12 -> 0 | T45: =Pasiva!T12 -> 0 | U45: =Pasiva!U12 -> 0 | V45: =Pasiva!V12 -> 0
G46: Celková aktiva | I46: =Aktiva!I6 -> 3101 | J46: =Aktiva!J6 -> 2317 | K46: =Aktiva!K6 -> 3234 | L46: =Aktiva!L6 -> 2744 | M46: =Aktiva!M6 -> 3195 | N46: =Aktiva!N6 -> 4655 | O46: =Aktiva!O6 -> 0 | P46: =Aktiva!P6 -> 0 | Q46: =Aktiva!Q6 -> 0 | R46: =Aktiva!R6 -> 0 | S46: =Aktiva!S6 -> 0 | T46: =Aktiva!T6 -> 0 | U46: =Aktiva!U6 -> 0 | V46: =Aktiva!V6 -> 0
G47: Celková zadluženost | I47: =I45/I46 -> 0.9729119639 | J47: 1.201553733 | K47: 0.9359925788 | L47: 0.8815597668 | M47: 0.8297339593 | N47: 0.8595059076 | O47: =O45/O46 -> 
G50: Koeficient samofinancování | I50: 2012 | J50: 2013 | K50: 2014 | L50: 2015 | M50: 2016 | N50: 2017 | O50: 2018 | P50: 2019 | Q50: 2020 | R50: 2021 | S50: 2022 | T50: 2023 | U50: 2024 | V50: 2025
G51: Vlastní kapitál | I51: =Pasiva!I6 -> 87 | J51: =Pasiva!J6 -> -480 | K51: =Pasiva!K6 -> 205 | L51: =Pasiva!L6 -> 323 | M51: =Pasiva!M6 -> 542 | N51: =Pasiva!N6 -> 702 | O51: =Pasiva!O6 -> 0 | P51: =Pasiva!P6 -> 0 | Q51: =Pasiva!Q6 -> 0 | R51: =Pasiva!R6 -> 0 | S51: =Pasiva!S6 -> 0 | T51: =Pasiva!T6 -> 0 | U51: =Pasiva!U6 -> 0 | V51: =Pasiva!V6 -> 0
G52: Celková aktiva | I52: =I46 -> 3101 | J52: 2317 | K52: 3234 | L52: 2744 | M52: 3195 | N52: 4655 | O52: =O46 -> 0 | P52: 0 | Q52: 0 | R52: 0 | S52: 0 | T52: 0 | U52: 0 | V52: 0
G53: Koeficient samofinancování | I53: =I51/I52 -> 0.02805546598 | J53: -0.2071644368 | K53: 0.06338899196 | L53: 0.1177113703 | M53: 0.1696400626 | N53: 0.1508055854 | O53: =O51/O52 -> 
G56: Aktivita
G57: Obrat celkových aktiv | I57: 2012 | J57: 2013 | K57: 2014 | L57: 2015 | M57: 2016 | N57: 2017 | O57: 2018 | P57: 2019 | Q57: 2020 | R57: 2021 | S57: 2022 | T57: 2023 | U57: 2024 | V57: 2025
G58: Roční tržby | I58: =I35 -> 10533 | J58: 5779 | K58: 7196 | L58: 12769 | M58: 14484 | N58: 17760 | O58: =O35 -> 0 | P58: 0 | Q58: 0 | R58: 0 | S58: 0 | T58: 0 | U58: 0 | V58: 0
G59: Celková aktiva | I59: =I52 -> 3101 | J59: 2317 | K59: 3234 | L59: 2744 | M59: 3195 | N59: 4655 | O59: =O52 -> 0 | P59: 0 | Q59: 0 | R59: 0 | S59: 0 | T59: 0 | U59: 0 | V59: 0
G60: Obrat celkových aktiv | I60: =I58/I59 -> 3.396646243 | J60: 2.4941735 | K60: 2.225108225 | L60: 4.653425656 | M60: 4.533333333 | N60: 3.815252417 | O60: =O58/O59 -> 
G61: Obrat stálých aktiv | I61: 2012 | J61: 2013 | K61: 2014 | L61: 2015 | M61: 2016 | N61: 2017 | O61: 2018 | P61: 2019 | Q61: 2020 | R61: 2021 | S61: 2022 | T61: 2023 | U61: 2024 | V61: 2025
G62: Roční tržby | I62: =I58 -> 10533 | J62: 5779 | K62: 7196 | L62: 12769 | M62: 14484 | N62: 17760 | O62: =O58 -> 0 | P62: 0 | Q62: 0 | R62: 0 | S62: 0 | T62: 0 | U62: 0 | V62: 0
G63: Stálá aktiva | I63: =Aktiva!I7 -> 759 | J63: =Aktiva!J7 -> 374 | K63: =Aktiva!K7 -> 384 | L63: =Aktiva!L7 -> 881 | M63: =Aktiva!M7 -> 1261 | N63: =Aktiva!N7 -> 2154 | O63: =Aktiva!O7 -> 0 | P63: =Aktiva!P7 -> 0 | Q63: =Aktiva!Q7 -> 0 | R63: =Aktiva!R7 -> 0 | S63: =Aktiva!S7 -> 0 | T63: =Aktiva!T7 -> 0 | U63: =Aktiva!U7 -> 0 | V63: =Aktiva!V7 -> 0
G64: Obrat stálých aktiv | I64: =I62/I63 -> 13.87747036 | J64: 15.45187166 | K64: 18.73958333 | L64: 14.49375709 | M64: 11.48612213 | N64: 8.245125348 | O64: =O62/O63 -> 
G65: Doba obratu pohledávek | I65: 2012 | J65: 2013 | K65: 2014 | L65: 2015 | M65: 2016 | N65: 2017 | O65: 2018 | P65: 2019 | Q65: 2020 | R65: 2021 | S65: 2022 | T65: 2023 | U65: 2024 | V65: 2025
G66: Pohledávky | I66: =Aktiva!I11 -> 2255 | J66: =Aktiva!J11 -> 1910 | K66: =Aktiva!K11 -> 1098 | L66: =Aktiva!L11 -> 1483 | M66: =Aktiva!M11 -> 1795 | N66: =Aktiva!N11 -> 2205 | O66: =Aktiva!O11 -> 0 | P66: =Aktiva!P11 -> 0 | Q66: =Aktiva!Q11 -> 0 | R66: =Aktiva!R11 -> 0 | S66: =Aktiva!S11 -> 0 | T66: =Aktiva!T11 -> 0 | U66: =Aktiva!U11 -> 0 | V66: =Aktiva!V11 -> 0
G67: Tržby | I67: =I62 -> 10533 | J67: 5779 | K67: 7196 | L67: 12769 | M67: 14484 | N67: 17760 | O67: =O62 -> 0 | P67: 0 | Q67: 0 | R67: 0 | S67: 0 | T67: 0 | U67: 0 | V67: 0
G68: Doba obratu pohledávek | I68: =360*(I66/I67) -> 77.07205924 | J68: =360*(J66/J67) -> 118.9825229 | K68: =360*(K66/K67) -> 54.93051695 | L68: 41.81063513 | M68: 44.61474731 | N68: 44.69594595 | O68: =360*(O66/O67) -> 
G69: Doba obratu závazků | I69: 2012 | J69: 2013 | K69: 2014 | L69: 2015 | M69: 2016 | N69: 2017 | O69: 2018 | P69: 2019 | Q69: 2020 | R69: 2021 | S69: 2022 | T69: 2023 | U69: 2024 | V69: 2025
G70: Závazky | I70: =Pasiva!H14+Pasiva!H16 -> 3459 | J70: =Pasiva!I14+Pasiva!I16 -> 3017 | K70: =Pasiva!J14+Pasiva!J16 -> 2784 | L70: =Pasiva!K14+Pasiva!K16 -> 3027 | M70: =Pasiva!L14+Pasiva!L16 -> 2419 | N70: =Pasiva!M14+Pasiva!M16 -> 2651 | O70: =Pasiva!N14+Pasiva!N16 -> 4001 | P70: =Pasiva!O14+Pasiva!O16 -> 0 | Q70: =Pasiva!P14+Pasiva!P16 -> 0 | R70: =Pasiva!Q14+Pasiva!Q16 -> 0 | S70: =Pasiva!R14+Pasiva!R16 -> 0 | T70: =Pasiva!S14+Pasiva!S16 -> 0 | U70: =Pasiva!T14+Pasiva!T16 -> 0 | V70: =Pasiva!U14+Pasiva!U16 -> 0
G71: Tržby | I71: =I58 -> 10533 | J71: 5779 | K71: 7196 | L71: 12769 | M71: 14484 | N71: 17760 | O71: =O58 -> 0 | P71: 0 | Q71: 0 | R71: 0 | S71: 0 | T71: 0 | U71: 0 | V71: 0
G72: Doba obratu závazků | I72: =360*(I70/I71) -> 118.2227286 | J72: =360*(J70/J71) -> 187.9425506 | K72: 139.2773763 | L72: 85.34106038 | M72: 60.12427506 | N72: 53.73648649 | O72: =360*(O70/O71) -> 

Sheet Soustavy ukazatel
H3: Z-skóre | I3: Rok
I4: 2012 | J4: 2013 | K4: 2014 | L4: 2015 | M4: 2016 | N4: 2017 | O4: 2018 | P4: 2019 | Q4: 2020 | R4: 2021 | S4: 2022 | T4: 2023 | U4: 2024 | V4: 2025
H5: ČPK | I5: =Aktiva!I10-Pasiva!I16 -> 40 | J5: =Aktiva!J10-Pasiva!J16 -> 1279 | K5: =Aktiva!K10-Pasiva!K16 -> 67 | L5: =Aktiva!L10-Pasiva!L16 -> -444 | M5: =Aktiva!M10-Pasiva!M16 -> -335 | N5: =Aktiva!N10-Pasiva!N16 -> 600 | O5: =Aktiva!O10-Pasiva!O16 -> 0 | P5: =Aktiva!P10-Pasiva!P16 -> 0 | Q5: =Aktiva!Q10-Pasiva!Q16 -> 0 | R5: =Aktiva!R10-Pasiva!R16 -> 0 | S5: =Aktiva!S10-Pasiva!S16 -> 0 | T5: =Aktiva!T10-Pasiva!T16 -> 0 | U5: =Aktiva!U10-Pasiva!U16 -> 0 | V5: =Aktiva!V10-Pasiva!V16 -> 0
H7: Nerozdělený zisk | I7: =Pasiva!I9 -> -260 | J7: =Pasiva!J9 -> -114 | K7: =Pasiva!K9 -> -679 | L7: =Pasiva!L9 -> 5 | M7: =Pasiva!M9 -> 123 | N7: =Pasiva!N9 -> 343 | O7: =Pasiva!O9 -> 0 | P7: =Pasiva!P9 -> 0 | Q7: =Pasiva!Q9 -> 0 | R7: =Pasiva!R9 -> 0 | S7: =Pasiva!S9 -> 0 | T7: =Pasiva!T9 -> 0 | U7: =Pasiva!U9 -> 0 | V7: =Pasiva!V9 -> 0
H9: EBIT | I9: =VZZ!I34+VZZ!I31+VZZ!I25 -> 157 | J9: =VZZ!J34+VZZ!J31+VZZ!J25 -> -566 | K9: =VZZ!K34+VZZ!K31+VZZ!K25 -> 748 | L9: =VZZ!L34+VZZ!L31+VZZ!L25 -> 218 | M9: =VZZ!M34+VZZ!M31+VZZ!M25 -> 432 | N9: =VZZ!N34+VZZ!N31+VZZ!N25 -> 395 | O9: =VZZ!O34+VZZ!O31+VZZ!O25 -> 0 | P9: =VZZ!P34+VZZ!P31+VZZ!P25 -> 0 | Q9: =VZZ!Q34+VZZ!Q31+VZZ!Q25 -> 0 | R9: =VZZ!R34+VZZ!R31+VZZ!R25 -> 0 | S9: =VZZ!S34+VZZ!S31+VZZ!S25 -> 0 | T9: =VZZ!T34+VZZ!T31+VZZ!T25 -> 0 | U9: =VZZ!U34+VZZ!U31+VZZ!U25 -> 0 | V9: =VZZ!V34+VZZ!V31+VZZ!V25 -> 0
H11: Vlastní kapitál | I11: =Pasiva!I6 -> 87 | J11: =Pasiva!J6 -> -480 | K11: =Pasiva!K6 -> 205 | L11: =Pasiva!L6 -> 323 | M11: =Pasiva!M6 -> 542 | N11: =Pasiva!N6 -> 702 | O11: =Pasiva!O6 -> 0 | P11: =Pasiva!P6 -> 0 | Q11: =Pasiva!Q6 -> 0 | R11: =Pasiva!R6 -> 0 | S11: =Pasiva!S6 -> 0 | T11: =Pasiva!T6 -> 0 | U11: =Pasiva!U6 -> 0 | V11: =Pasiva!V6 -> 0
H13: Celkový obrat | I13: =VZZ!I4+VZZ!I18 -> 10533 | J13: =VZZ!J4+VZZ!J18 -> 6359 | K13: =VZZ!K4+VZZ!K18 -> 7196 | L13: =VZZ!L4+VZZ!L18 -> 12769 | M13: =VZZ!M4+VZZ!M18 -> 14759 | N13: =VZZ!N4+VZZ!N18 -> 17820 | O13: =VZZ!O4+VZZ!O18 -> 0 | P13: =VZZ!P4+VZZ!P18 -> 0 | Q13: =VZZ!Q4+VZZ!Q18 -> 0 | R13: =VZZ!R4+VZZ!R18 -> 0 | S13: =VZZ!S4+VZZ!S18 -> 0 | T13: =VZZ!T4+VZZ!T18 -> 0 | U13: =VZZ!U4+VZZ!U18 -> 0 | V13: =VZZ!V4+VZZ!V18 -> 0
H15: Účetní hodnota celkových dluhů | I15: =Pasiva!I12 -> 3017 | J15: =Pasiva!J12 -> 2784 | K15: =Pasiva!K12 -> 3027 | L15: =Pasiva!L12 -> 2419 | M15: =Pasiva!M12 -> 2651 | N15: =Pasiva!N12 -> 4001 | O15: =Pasiva!O12 -> 0 | P15: =Pasiva!P12 -> 0 | Q15: =Pasiva!Q12 -> 0 | R15: =Pasiva!R12 -> 0 | S15: =Pasiva!S12 -> 0 | T15: =Pasiva!T12 -> 0 | U15: =Pasiva!U12 -> 0 | V15: =Pasiva!V12 -> 0
H17: Aktiva | I17: =Aktiva!I6 -> 3101 | J17: =Aktiva!J6 -> 2317 | K17: =Aktiva!K6 -> 3234 | L17: =Aktiva!L6 -> 2744 | M17: =Aktiva!M6 -> 3195 | N17: =Aktiva!N6 -> 4655 | O17: =Aktiva!O6 -> 0 | P17: =Aktiva!P6 -> 0 | Q17: =Aktiva!Q6 -> 0 | R17: =Aktiva!R6 -> 0 | S17: =Aktiva!S6 -> 0 | T17: =Aktiva!T6 -> 0 | U17: =Aktiva!U6 -> 0 | V17: =Aktiva!V6 -> 0
H19: Z-skóre | I19: 2012 | J19: 2013 | K19: 2014 | L19: 2015 | M19: 2016 | N19: 2017 | O19: 2018 | P19: 2019 | Q19: 2020 | R19: 2021 | S19: 2022 | T19: 2023 | U19: 2024 | V19: 2025
H20: A | I20: =I5/I17 -> 0.01289906482 | J20: 0.5520069055 | K20: 0.02071737786 | L20: -0.1618075802 | M20: -0.1048513302 | N20: 0.1288936627 | O20: =O5/O17 -> 
H21: B | I21: =I7/I17 -> -0.08384392132 | J21: -0.04920155373 | K21: -0.20995671 | L21: 0.001822157434 | M21: 0.03849765258 | N21: 0.07368421053 | O21: =O7/O17 -> 
H22: C | I22: =I9/I17 -> 0.05062882941 | J22: -0.2442813984 | K22: 0.231292517 | L22: 0.07944606414 | M22: 0.1352112676 | N22: 0.08485499463 | O22: =O9/O17 -> 
H23: D | I23: =I11/I15 -> 0.02883659264 | J23: -0.1724137931 | K23: 0.06772381896 | L23: 0.1335262505 | M23: 0.2044511505 | N23: 0.175456136 | O23: =O11/O15 -> 
H24: E | I24: =I13/I17 -> 3.396646243 | J24: 2.744497195 | K24: 2.225108225 | L24: 4.653425656 | M24: 4.619405321 | N24: 3.828141783 | O24: =O13/O17 -> 
H25: Z skore | I25: =1.2*I20+1.4*I21+3.3*I22+0.6*I23+1*I24 -> 3.479120724 | J25: 2.428446416 | K25: 2.759929282 | L25: 4.804095342 | M25: 5.116348312 | N25: 4.471267237 | O25: =1.2*O20+1.4*O21+3.3*O22+0.6*O23+1*O24 -> 
H27: Index IN05 | I27: Rok
I28: 2012 | J28: 2013 | K28: 2014 | L28: 2015 | M28: 2016 | N28: 2017 | O28: 2018 | P28: 2019 | Q28: 2020 | R28: 2021 | S28: 2022 | T28: 2023 | U28: 2024 | V28: 2025
H29: Aktiva | I29: =Aktiva!I6 -> 3101 | J29: =Aktiva!J6 -> 2317 | K29: =Aktiva!K6 -> 3234 | L29: =Aktiva!L6 -> 2744 | M29: =Aktiva!M6 -> 3195 | N29: =Aktiva!N6 -> 4655 | O29: =Aktiva!O6 -> 0 | P29: =Aktiva!P6 -> 0 | Q29: =Aktiva!Q6 -> 0 | R29: =Aktiva!R6 -> 0 | S29: =Aktiva!S6 -> 0 | T29: =Aktiva!T6 -> 0 | U29: =Aktiva!U6 -> 0 | V29: =Aktiva!V6 -> 0
H31: Cizi kapitál | I31: =Pasiva!I12 -> 3017 | J31: =Pasiva!J12 -> 2784 | K31: =Pasiva!K12 -> 3027 | L31: =Pasiva!L12 -> 2419 | M31: =Pasiva!M12 -> 2651 | N31: =Pasiva!N12 -> 4001 | O31: =Pasiva!O12 -> 0 | P31: =Pasiva!P12 -> 0 | Q31: =Pasiva!Q12 -> 0 | R31: =Pasiva!R12 -> 0 | S31: =Pasiva!S12 -> 0 | T31: =Pasiva!T12 -> 0 | U31: =Pasiva!U12 -> 0 | V31: =Pasiva!V12 -> 0
H33: =H9 -> EBIT | I33: 157 | J33: -566 | K33: 748 | L33: 218 | M33: 432 | N33: 395 | O33: =O9 -> 0 | P33: 0 | Q33: 0 | R33: 0 | S33: 0 | T33: 0 | U33: 0 | V33: 0
H35: Nákladové úroky | I35: 1 | J35: 1 | K35: =VZZ!K25 -> 52 | L35: =VZZ!L25 -> 86 | M35: =VZZ!M25 -> 160 | N35: =VZZ!N25 -> 168 | O35: =VZZ!O25 -> 0 | P35: =VZZ!P25 -> 0 | Q35: =VZZ!Q25 -> 0 | R35: =VZZ!R25 -> 0 | S35: =VZZ!S25 -> 0 | T35: =VZZ!T25 -> 0 | U35: =VZZ!U25 -> 0 | V35: =VZZ!V25 -> 0
H37: Celkové výnosy | I37: =VZZ!I4+VZZ!I5 -> 10533 | J37: =VZZ!J4+VZZ!J5 -> 5779 | K37: =VZZ!K4+VZZ!K5 -> 7196 | L37: =VZZ!L4+VZZ!L5 -> 12769 | M37: =VZZ!M4+VZZ!M5 -> 14484 | N37: =VZZ!N4+VZZ!N5 -> 17760 | O37: =VZZ!O4+VZZ!O5 -> 0 | P37: =VZZ!P4+VZZ!P5 -> 0 | Q37: =VZZ!Q4+VZZ!Q5 -> 0 | R37: =VZZ!R4+VZZ!R5 -> 0 | S37: =VZZ!S4+VZZ!S5 -> 0 | T37: =VZZ!T4+VZZ!T5 -> 0 | U37: =VZZ!U4+VZZ!U5 -> 0 | V37: =VZZ!V4+VZZ!V5 -> 0
H39: Oběžná aktiva | I39: =Aktiva!I10 -> 2319 | J39: =Aktiva!J10 -> 1934 | K39: =Aktiva!K10 -> 2844 | L39: =Aktiva!L10 -> 1845 | M39: =Aktiva!M10 -> 1898 | N39: =Aktiva!N10 -> 2477 | O39: =Aktiva!O10 -> 0 | P39: =Aktiva!P10 -> 0 | Q39: =Aktiva!Q10 -> 0 | R39: =Aktiva!R10 -> 0 | S39: =Aktiva!S10 -> 0 | T39: =Aktiva!T10 -> 0 | U39: =Aktiva!U10 -> 0 | V39: =Aktiva!V10 -> 0
H41: Krátkodobé závazky a úvěry | I41: =Pasiva!I16 -> 2279 | J41: =Pasiva!J16 -> 655 | K41: =Pasiva!K16 -> 2777 | L41: =Pasiva!L16 -> 2289 | M41: =Pasiva!M16 -> 2233 | N41: =Pasiva!N16 -> 1877 | O41: =Pasiva!O16 -> 0 | P41: =Pasiva!P16 -> 0 | Q41: =Pasiva!Q16 -> 0 | R41: =Pasiva!R16 -> 0 | S41: =Pasiva!S16 -> 0 | T41: =Pasiva!T16 -> 0 | U41: =Pasiva!U16 -> 0 | V41: =Pasiva!V16 -> 0
H43: IN05 | I43: 2012 | J43: 2013 | K43: 2014 | L43: 2015 | M43: 2016 | N43: 2017 | O43: 2018 | P43: 2019 | Q43: 2020 | R43: 2021 | S43: 2022 | T43: 2023 | U43: 2024 | V43: 2025
H44: A | I44: =I29/I31 -> 1.027842227 | J44: 0.8322557471 | K44: 1.068384539 | L44: 1.134353038 | M44: 1.205205583 | N44: 1.163459135 | O44: =O29/O31 -> 
H45: B | I45: =I33/I35 -> 157 | J45: -566 | K45: 14.38461538 | L45: 2.534883721 | M45: 2.7 | N45: 2.351190476 | O45: =O33/O35 -> 
H46: C | I46: =I33/I29 -> 0.05062882941 | J46: -0.2442813984 | K46: 0.231292517 | L46: 0.07944606414 | M46: 0.1352112676 | N46: 0.08485499463 | O46: =O33/O29 -> 
H47: D | I47: =I37/I29 -> 3.396646243 | J47: 2.4941735 | K47: 2.225108225 | L47: 4.653425656 | M47: 4.533333333 | N47: 3.815252417 | O47: =O37/O29 -> 
H48: E | I48: =I39/I41 -> 1.017551558 | J48: 2.952671756 | K48: 1.024126755 | L48: 0.8060288336 | M48: 0.8499776086 | N48: 1.31965903 | O48: =O39/O41 -> 
H49: Index IN05 | I49: =0.13*I44+0.04*I45+3.97*I46+0.21*I47+0.09*I48 -> 7.419491294 | J49: -22.71208701 | K49: 2.191950033 | L49: 1.614024101 | M49: 1.829963443 | N49: 1.502143956 | O49: =0.13*O44+0.04*O45+3.97*O46+0.21*O47+0.09*O48 -> 

Sheet Regresní analýza
C4: ČPK
C5: Roky | D5: i | E5: yi (Kč) | F5: 1di(y) | G5: ki(y) | H5: Regresní přimka
C6: 2012 | D6: 1 | E6: =Rozdilové!I$10 -> 40 | F6: - | G6: - | H6: =$J$11+$K$11 -> 383.5238095 | J6: Průměr první diference | K6: =(E11-E6)/5 -> 112
C7: 2013 | D7: 2 | E7: =Rozdilové!J$10 -> 1279 | F7: =E7-E6 -> 1239 | G7: =E7/E6 -> 31.975 | H7: =$J$11*2+$K$11 -> 310.5809524 | J7: Průměrný koeficient růstu | K7: =(E11/E6)^(1/5) -> 1.718771928
C8: 2014 | D8: 3 | E8: =Rozdilové!K$10 -> 67 | F8: =E8-E7 -> -1212 | G8: =E8/E7 -> 0.05238467553 | H8: =$J$11*3+$K$11 -> 237.6380952 | J8: vyběrový průměr x | K8: =SUM(D6:D11)/6 -> 3.5
C9: 2015 | D9: 4 | E9: =Rozdilové!L$10 -> -444 | F9: =E9-E8 -> -511 | G9: =E9/E8 -> -6.626865672 | H9: =$J$11*4+$K$11 -> 164.6952381 | J9: vyběrový průměr y | K9: =SUM(E6:E11)/6 -> 201.1666667
C10: 2016 | D10: 5 | E10: =Rozdilové!M$10 -> -335 | F10: =E10-E9 -> 109 | G10: =E10/E9 -> 0.7545045045 | H10: =$J$11*5+$K$11 -> 91.75238095 | J10: b2 | K10: b1
C11: 2017 | D11: 6 | E11: =Rozdilové!N$10 -> 600 | F11: =E11-E10 -> 935 | G11: =E11/E10 -> -1.791044776 | H11: =$J$11*6+$K$11 -> 18.80952381 | J11: =LINEST(E6:E11,D6:D11) -> -72.94285714 | K11: 456.4666667
C12: 2018 | E12: -22.127
C17: ROA
C18: Roky | D18: i | E18: yi | F18: 1di(y) | G18: ki(y) | H18: Regresní přimka
C19: 2012 | D19: 1 | E19: =Poměrové!I23 -> 0.05062882941 | F19: - | G19: - | H19: =$J$24+$K$24 -> -0.02650526648 | J19: Průměr první diference | K19: =(E24-E19)/5 -> 0.006845233044
C20: 2013 | D20: 2 | E20: =Poměrové!J$23 -> -0.2442813984 | F20: =E20-E19 -> -0.2949102278 | G20: =E20/E19 -> -4.824946601 | H20: =$J$24*2+$K$24 -> 0.006573658405 | J20: Průměrný koeficient růstu | K20: =(E24/E19)^(1/5) -> 1.108806862
C21: 2014 | D21: 3 | E21: =Poměrové!K$23 -> 0.231292517 | F21: =E21-E20 -> 0.4755739154 | G21: =E21/E20 -> -0.9468282012 | H21: =$J$24*3+$K$24 -> 0.03965258329 | J21: vyběrový průměr x | K21: =SUM(D19:D24)/6 -> 3.5
C22: 2015 | D22: 4 | E22: =Poměrové!L$23 -> 0.07944606414 | F22: =E22-E21 -> -0.1518464529 | G22: =E22/E21 -> 0.343487395 | H22: =$J$24*4+$K$24 -> 0.07273150818 | J22: vyběrový průměr y | K22: =SUM(E19:E24)/6 -> 0.05619204574
C23: 2016 | D23: 5 | E23: =Poměrové!M$23 -> 0.1352112676 | F23: =E23-E22 -> 0.05576520347 | G23: =E23/E22 -> 1.701925313 | H23: =$J$24*5+$K$24 -> 0.1058104331 | J23: b2 | K23: b1
C24: 2017 | D24: 6 | E24: =Poměrové!N$23 -> 0.08485499463 | F24: =E24-E23 -> -0.05035627298 | G24: =E24/E23 -> 0.6275733978 | H24: =$J$24+$K$24 -> -0.02650526648 | J24: =LINEST(E19:E24,D19:D24) -> 0.03307892489 | K24: -0.05958419137
C25: 2018 | E25: 0.17
C29: Okamžita
C30: Roky | D30: i | E30: yi | F30: 1di(y) | G30: ki(y) | H30: Regresní přimka
C31: 2012 | D31: 1 | E31: =Poměrové!I$8 -> 0.02808249232 | F31: - | G31: - | H31: =$J$36+$K$36 -> 0.1636303848 | J31: Průměr první diference | K31: =(E36-E31)/5 -> 0.02336592029
C32: 2013 | D32: 2 | E32: =Poměrové!J$8 -> 0.03664122137 | F32: =E32-E31 -> 0.008558729053 | G32: =E32/E31 -> 1.304770992 | H32: =$J$36*2+$K$36 -> 0.1676879511 | J32: Průměrný koeficient růstu | K32: =(E36/E31)^(1/5) -> 1.388461355
C33: 2014 | D33: 3 | E33: =Poměrové!K$8 -> 0.6287360461 | F33: =E33-E32 -> 0.5920948247 | G33: =E33/E32 -> 17.15925459 | H33: =$J$36*3+$K$36 -> 0.1717455175 | J33: vyběrový průměr x | K33: =SUM(D31:D36)/6 -> 3.5
C34: 2015 | D34: 4 | E34: =Poměrové!L$8 -> 0.1581476627 | F34: =E34-E33 -> -0.4705883834 | G34: =E34/E33 -> 0.2515326801 | H34: =$J$36*4+$K$36 -> 0.1758030838 | J34: vyběrový průměr y | K34: =SUM(E31:E36)/6 -> 0.1737743006
C35: 2016 | D35: 5 | E35: =Poměrové!M$8 -> 0.04612628751 | F35: =E35-E34 -> -0.1120213752 | G35: =E35/E34 -> 0.291665945 | H35: =$J$36*4+$K$36 -> 0.1758030838 | J35: b2 | K35: b1
C36: 2017 | D36: 6 | E36: =Poměrové!N$8 -> 0.1449120938 | F36: =E36-E35 -> 0.09878580626 | G36: =E36/E35 -> 3.141637916 | H36: =$J$36*5+$K$36 -> 0.1798606502 | J36: =LINEST(E31:E36,D31:D36) -> 0.00405756635 | K36: 0.1595728184
C37: 2018 | E37: =0.0046*7 + 0.1583 -> 0.1905
C42: Obrat celkových aktiv
C43: Roky | D43: i | E43: yi | F43: 1di(y) | G43: ki(y) | H43: Regresní přimka
C44: 2012 | D44: 1 | E44: =Poměrové!I$60 -> 3.396646243 | F44: - | G44: - | H44: =$J$49+$K$49 -> 2.759740291 | J44: Průměr první diference | K44: =(E49-E44)/5 -> 0.08372123472
C45: 2013 | D45: 2 | E45: =Poměrové!J$60 -> 2.4941735 | F45: =E45-E44 -> -0.9024727429 | G45: =E45/E44 -> 0.7343047588 | H45: =$J$49*2+$K$49 -> 3.0637068 | J45: Průměrný koeficient růstu | K45: =(E49/E44)^(1/5) -> 1.023515895
C46: 2014 | D46: 3 | E46: =Poměrové!K$60 -> 2.225108225 | F46: =E46-E45 -> -0.2690652751 | G46: =E46/E45 -> 0.8921224706 | H46: =$J$49*3+$K$49 -> 3.367673308 | J46: vyběrový průměr x | K46: =SUM(D44:D49)/6 -> 3.5
C47: 2015 | D47: 4 | E47: =Poměrové!L$60 -> 4.653425656 | F47: =E47-E46 -> 2.428317431 | G47: =E47/E46 -> 2.091325538 | H47: =$J$49*4+$K$49 -> 3.671639817 | J47: vyběrový průměr y | K47: =SUM(E44:E49)/6 -> 3.519656562
C48: 2016 | D48: 5 | E48: =Poměrové!M$60 -> 4.533333333 | F48: =E48-E47 -> -0.1200923226 | G48: =E48/E47 -> 0.9741927063 | H48: =$J$49*4+$K$49 -> 3.671639817 | J48: b2 | K48: b1
C49: 2017 | D49: 6 | E49: =Poměrové!N$60 -> 3.815252417 | F49: =E49-E48 -> -0.7180809166 | G49: =E49/E48 -> 0.8415997978 | H49: =$J$49*5+$K$49 -> 3.975606325 | J49: =LINEST(E44:E49,D44:D49) -> 0.3039665085 | K49: 2.455773783
C50: 2018 | E50: =0.3046*7 + 2.4529 -> 4.5851
C54: Zadluženost
C55: Roky | D55: i | E55: yi | F55: 1di(y) | G55: ki(y) | H55: Regresní přimka
C56: 2012 | D56: 1 | E56: =Poměrové!I$47 -> 0.9729119639 | F56: - | G56: - | H56: =$J$61+K61 -> 1.070942205 | J56: Průměr první diference | K56: =(E61-E56)/5 -> -0.02268121125
C57: 2013 | D57: 2 | E57: =Poměrové!J$47 -> 1.201553733 | F57: =E57-E56 -> 0.2286417694 | G57: =E57/E56 -> 1.235007666 | H57: =$J$61*2+$K$61 -> 1.02131585 | J57: Průměrný koeficient růstu | K57: =(E61/E56)^(1/5) -> 0.9755174994
C58: 2014 | D58: 3 | E58: =Poměrové!K$47 -> 0.9359925788 | F58: =E58-E57 -> -0.2655611544 | G58: =E58/E57 -> 0.778985203 | H58: =$J$61*3+$K$61 -> 0.9716894956 | J58: vyběrový průměr x | K58: =SUM(D56:D61)/6 -> 3.5
C59: 2015 | D59: 4 | E59: =Poměrové!L$47 -> 0.8815597668 | F59: =E59-E58 -> -0.05443281209 | G59: =E59/E58 -> 0.9418448251 | H59: =$J$61*4+$K$61 -> 0.9220631409 | J59: vyběrový průměr y | K59: =SUM(E56:E61)/6 -> 0.9468763183
C60: 2016 | D60: 5 | E60: =Poměrové!M$47 -> 0.8297339593 | F60: =E60-E59 -> -0.05182580745 | G60: =E60/E59 -> 0.9412112378 | H60: =$J$61*5+K61 -> 0.8724367862 | J60: b2 | K60: b1
C61: 2017 | D61: 6 | E61: =Poměrové!N$47 -> 0.8595059076 | F61: =E61-E60 -> 0.02977194831 | G61: =E61/E60 -> 1.035881318 | H61: =$J$61*6+K61 -> 0.8228104315 | J61: =LINEST(E56:E61,D56:D61) -> -0.04962635472 | K61: 1.12056856
C62: 2018 | E62: =-0.051*7 + 1.1233 -> 0.7663
C67: Z skore
C68: Roky | D68: i | E68: yi | F68: 1di(y) | G68: ki(y) | H68: Regresní přimka
C69: 2012 | D69: 1 | E69: ='Soustavy ukazatel'!I$25 -> 3.479120724 | F69: - | G69: - | H69: =$J$11+$K$11 -> 383.5238095 | J69: Průměr první diference | K69: =(E74-E69)/5 -> 0.1984293026
C70: 2013 | D70: 2 | E70: ='Soustavy ukazatel'!J$25 -> 2.428446416 | F70: =E70-E69 -> -1.050674308 | G70: =E70/E69 -> 0.6980057918 | H70: =$J$11*2+$K$11 -> 310.5809524 | J70: Průměrný koeficient růstu | K70: =(E74/E69)^(1/5) -> 1.051458717
C71: 2014 | D71: 3 | E71: ='Soustavy ukazatel'!K$25 -> 2.759929282 | F71: =E71-E70 -> 0.3314828666 | G71: =E71/E70 -> 1.136499972 | H71: =$J$11*3+$K$11 -> 237.6380952 | J71: vyběrový průměr x | K71: =SUM(D69:D74)/6 -> 3.5
C72: 2015 | D72: 4 | E72: ='Soustavy ukazatel'!L$25 -> 4.804095342 | F72: =E72-E71 -> 2.04416606 | G72: =E72/E71 -> 1.740658854 | H72: =$J$11*4+$K$11 -> 164.6952381 | J72: vyběrový průměr y | K72: =SUM(E69:E74)/6 -> 3.843201219
C73: 2016 | D73: 5 | E73: ='Soustavy ukazatel'!M$25 -> 5.116348312 | F73: =E73-E72 -> 0.3122529694 | G73: =E73/E72 -> 1.064997247 | H73: =$J$11*4+$K$11 -> 164.6952381 | J73: b2 | K73: b1
C74: 2017 | D74: 6 | E74: ='Soustavy ukazatel'!N$25 -> 4.471267237 | F74: =E74-E73 -> -0.6450810747 | G74: =E74/E73 -> 0.8739176781 | H74: =$J$11*5+$K$11 -> 91.75238095 | J74: =LINEST(E69:E74,D69:D74) -> 0.4305315518 | K74: 2.336340787
C75: 2018 | E75: 5.3598
